Body Name,Body,Service Division Label,Service Division Code,Organisational Unit,Expenditure Category,Expenditure Code,CIPFA detailed expediture type,CIPFA detailed expediture code,Narrative,Date,Transaction number,Net Amount,Capital and Revenue,Supplier Name,Supplier ID,,
Chorley Borough Council,http://statistics.data.gov.uk/id/local-authority/30UE,Democratic Represent and  Mgnt,1007,Early Intervention,External Contractor - Trust or Charity,50008,Private Contractors,5042,Active Nation Management Fee Contract Year 12 Apr17-Mar-18,07/03/2018,0127865,"32,804.92",Revenue,Active Nation UK Ltd,17144,,
Chorley Borough Council,http://statistics.data.gov.uk/id/local-authority/30UE,Central Support Services,1009,Customer & Digital,Miscellaneous Expenses,40200,Miscellaneous Expenses,5034,Supply all materials and construction of entrance boundary marker as agreed with Eccleston PC. Formed from coursed Yorkshire,27/03/2018,0128244,"1,400.00",Revenue,Adlington Dry Stone Walling,63372,,
Chorley Borough Council,http://statistics.data.gov.uk/id/local-authority/30UE,Central Support Services,1009,Customer & Digital,Miscellaneous Expenses,40200,Miscellaneous Expenses,5034,materials,27/03/2018,0128244,"1,900.00",Revenue,Adlington Dry Stone Walling,63372,,
Chorley Borough Council,http://statistics.data.gov.uk/id/local-authority/30UE,Unapportionable Central OHeads,1009,Business Development & Growth,Planned Maintenance,20006,Repairs Maintenance & Alts,5005,Blanket order for PPM works from September 2017,07/03/2018,0127768,261.94,Revenue,ADT Fire & Security,16645,,
Chorley Borough Council,http://statistics.data.gov.uk/id/local-authority/30UE,Unapportionable Central OHeads,1009,Business Development & Growth,General Repairs - Reactive,20004,Repairs Maintenance & Alts,5005,Reactive Blanket order from August 2017,27/03/2018,0128343,273.00,Revenue,ADT Fire & Security,16645,,
Chorley Borough Council,http://statistics.data.gov.uk/id/local-authority/30UE,Unapportionable Central OHeads,1009,Business Development & Growth,General Repairs - Reactive,20004,Repairs Maintenance & Alts,5005,Reactive Blanket order from August 2017,27/03/2018,0128344,531.10,Revenue,ADT Fire & Security,16645,,
Chorley Borough Council,http://statistics.data.gov.uk/id/local-authority/30UE,Capital,Capital,Business Development & Growth,Architects Fees,03022,Capital Expenditure,Capital, x8.5hrs drawing work on Arley Street car park by Bernard Lam (associate),21/03/2018,0128284,680.00,Capital,AEW Architects & Designers Ltd,66520,,
Chorley Borough Council,http://statistics.data.gov.uk/id/local-authority/30UE,Unapportionable Central OHeads,1009,Customer & Digital,Bank Charges,40151,Miscellaneous Expenses,5034,transactions,16/03/2018,0128172,651.63,Revenue,Allpay Net Ltd,17242,,
Chorley Borough Council,http://statistics.data.gov.uk/id/local-authority/30UE,Corporate Management,1008,Policy & Governance,Car Leasing Payment,14100,Direct Employee Expenses,5001,NAME REDACTED,16/03/2018,0128175,"4,328.80",Revenue,Alphabet (Uk) Fleet Management Ltd,16651,,
Chorley Borough Council,http://statistics.data.gov.uk/id/local-authority/30UE,Corporate Management,1008,Policy & Governance,Car Leasing Payment,14100,Direct Employee Expenses,5001,,16/03/2018,0128175,383.69,Revenue,Alphabet (Uk) Fleet Management Ltd,16651,,
Chorley Borough Council,http://statistics.data.gov.uk/id/local-authority/30UE,Control Accounts,Control,Policy & Governance,Manual Control Account,00001,Balance Sheet,Balance,,16/03/2018,0128175,-383.69,Revenue,Alphabet (Uk) Fleet Management Ltd,16651,,
Chorley Borough Council,http://statistics.data.gov.uk/id/local-authority/30UE,Unapportionable Central OHeads,1009,Policy & Governance,Car Leasing Payment,14100,Direct Employee Expenses,5001,NAME REDACTED,16/03/2018,0128175,"2,181.33",Revenue,Alphabet (Uk) Fleet Management Ltd,16651,,
Chorley Borough Council,http://statistics.data.gov.uk/id/local-authority/30UE,Unapportionable Central OHeads,1009,Policy & Governance,Car Leasing Payment,14100,Direct Employee Expenses,5001,,16/03/2018,0128175,184.08,Revenue,Alphabet (Uk) Fleet Management Ltd,16651,,
Chorley Borough Council,http://statistics.data.gov.uk/id/local-authority/30UE,Control Accounts,Control,Policy & Governance,Manual Control Account,00001,Balance Sheet,Balance,,16/03/2018,0128175,-184.08,Revenue,Alphabet (Uk) Fleet Management Ltd,16651,,
Chorley Borough Council,http://statistics.data.gov.uk/id/local-authority/30UE,Democratic Represent and  Mgnt,1007,Business Development & Growth,Rent/Hire Of Premises,20017,Premises Rents,5007,RENT,09/03/2018,0127989,"10,625.00",Revenue,Alston Properties Ltd,77241,,
Chorley Borough Council,http://statistics.data.gov.uk/id/local-authority/30UE,Democratic Represent and  Mgnt,1007,Business Development & Growth,Rent/Hire Of Premises,20017,Premises Rents,5007,service charge,09/03/2018,0127989,"4,500.00",Revenue,Alston Properties Ltd,77241,,
Chorley Borough Council,http://statistics.data.gov.uk/id/local-authority/30UE,Democratic Represent and  Mgnt,1007,Business Development & Growth,Premises Related Insurances,20068,Premises Related Insurance,5014,insurance,09/03/2018,0127989,"1,002.16",Revenue,Alston Properties Ltd,77241,,
Chorley Borough Council,http://statistics.data.gov.uk/id/local-authority/30UE,Democratic Represent and  Mgnt,1007,Business Development & Growth,Rent/Hire Of Premises,20017,Premises Rents,5007,rent,16/03/2018,0128176,"10,625.00",Revenue,Alston Properties Ltd,77241,,
Chorley Borough Council,http://statistics.data.gov.uk/id/local-authority/30UE,Development Control,1091,Customer & Digital,Consultants` Fees,40077,Services,5027,Professional advice for planning application 17/00715/OUTMAJ with particular regard to retail impact excluding disbursements,07/03/2018,0127842,"2,500.00",Revenue,Alyn Nicholls,76491,,
Chorley Borough Council,http://statistics.data.gov.uk/id/local-authority/30UE,Business Support,1095,Business Development & Growth,Grants To Other Organisations,40127,Grants and Subscriptions,5031,sib grant,27/03/2018,0128421,250.00,Revenue,NAME REDACTED,77217,,
Chorley Borough Council,http://statistics.data.gov.uk/id/local-authority/30UE,Central Support Services,1009,Customer & Digital,Computer Equipment-Purchase,40098,Communication and Computing,5028,"Re-modelling of Townhall office data points, re-position and extend existing data points to new locations , Genuine CAT5e LSZH ",19/03/2018,0127967,525.00,Revenue,Ampec,76813,,
Chorley Borough Council,http://statistics.data.gov.uk/id/local-authority/30UE,Capital,Capital,Business Development & Growth,Main Contractor,03007,Capital Expenditure,Capital,"strip out ceiling tiles, fit cable tray and cables and secure",29/03/2018,0128466,758.00,Capital,Ampec,76813,,
Chorley Borough Council,http://statistics.data.gov.uk/id/local-authority/30UE,Corporate Management,1008,Policy & Governance,Other Contributions,40145,Grants and Subscriptions,5031,ADDRESS REDACTED,02/03/2018,0127909,"4,404.00",Revenue,NAME REDACTED,73978,,
Chorley Borough Council,http://statistics.data.gov.uk/id/local-authority/30UE,Unapportionable Central OHeads,1009,Policy & Governance,IT Software - Annual Licences,40101,Communication and Computing,5028,APT BACS iConnect Hosted Site Licence Annual charge for software maintenance commencing April 2018 As per maintenance ,29/03/2018,0128472,"1,500.00",Revenue,APT,17305,,
Chorley Borough Council,http://statistics.data.gov.uk/id/local-authority/30UE,Central Support Services,1009,Early Intervention,Miscellaneous Expenses,40200,Miscellaneous Expenses,5034,Bush BEID60SS Double Electric Cooker - Stainless Steel Part number 539/9369 EAN: 5055862309216 Item for Clayton Brook Vi,07/03/2018,0127859,312.49,Revenue,Argos Business Solutions,16213,,
Chorley Borough Council,http://statistics.data.gov.uk/id/local-authority/30UE,Unapportionable Central OHeads,1009,Policy & Governance,Consultants` Fees,40077,Services,5027,Professional Services,29/03/2018,0128527,"3,000.00",Revenue,Arlingclose Ltd,77270,,
Chorley Borough Council,http://statistics.data.gov.uk/id/local-authority/30UE,Unapportionable Central OHeads,1009,Policy & Governance,Car Leasing Payment,14100,Direct Employee Expenses,5001,NAME REDACTED,29/03/2018,0127623,"4,654.80",Revenue,Arnold Clark Finance Ltd,20685,,
Chorley Borough Council,http://statistics.data.gov.uk/id/local-authority/30UE,Unapportionable Central OHeads,1009,Policy & Governance,Car Leasing Payment,14100,Direct Employee Expenses,5001,,29/03/2018,0127623,425.31,Revenue,Arnold Clark Finance Ltd,20685,,
Chorley Borough Council,http://statistics.data.gov.uk/id/local-authority/30UE,Control Accounts,Control,Policy & Governance,Manual Control Account,00001,Balance Sheet,Balance,,29/03/2018,0127623,-425.31,Revenue,Arnold Clark Finance Ltd,20685,,
Chorley Borough Council,http://statistics.data.gov.uk/id/local-authority/30UE,Unapportionable Central OHeads,1009,Policy & Governance,Car Leasing Payment,14100,Direct Employee Expenses,5001,NAME REDACTED,27/03/2018,0128419,"2,750.88",Revenue,Arnold Clark Finance Ltd,20685,,
Chorley Borough Council,http://statistics.data.gov.uk/id/local-authority/30UE,Unapportionable Central OHeads,1009,Policy & Governance,Car Leasing Payment,14100,Direct Employee Expenses,5001,,27/03/2018,0128419,218.69,Revenue,Arnold Clark Finance Ltd,20685,,
Chorley Borough Council,http://statistics.data.gov.uk/id/local-authority/30UE,Control Accounts,Control,Policy & Governance,Manual Control Account,00001,Balance Sheet,Balance,,27/03/2018,0128419,-218.69,Revenue,Arnold Clark Finance Ltd,20685,,
Chorley Borough Council,http://statistics.data.gov.uk/id/local-authority/30UE,Unapportionable Central OHeads,1009,Policy & Governance,Car Leasing Payment,14100,Direct Employee Expenses,5001,NAME REDACTED,27/03/2018,0128420,"2,955.24",Revenue,Arnold Clark Finance Ltd,20685,,
Chorley Borough Council,http://statistics.data.gov.uk/id/local-authority/30UE,Unapportionable Central OHeads,1009,Policy & Governance,Car Leasing Payment,14100,Direct Employee Expenses,5001,,27/03/2018,0128420,229.05,Revenue,Arnold Clark Finance Ltd,20685,,
Chorley Borough Council,http://statistics.data.gov.uk/id/local-authority/30UE,Control Accounts,Control,Policy & Governance,Manual Control Account,00001,Balance Sheet,Balance,,27/03/2018,0128420,-229.05,Revenue,Arnold Clark Finance Ltd,20685,,
Chorley Borough Council,http://statistics.data.gov.uk/id/local-authority/30UE,Central Support Services,1009,Policy & Governance,Car Leasing Payment,14100,Direct Employee Expenses,5001,Car Lease,23/03/2018,0127667,"2,615.49",Revenue,Arval UK Ltd,18240,,
Chorley Borough Council,http://statistics.data.gov.uk/id/local-authority/30UE,Central Support Services,1009,Policy & Governance,Car Leasing Payment,14100,Direct Employee Expenses,5001,,23/03/2018,0127667,219.75,Revenue,Arval UK Ltd,18240,,
Chorley Borough Council,http://statistics.data.gov.uk/id/local-authority/30UE,Control Accounts,Control,Policy & Governance,Manual Control Account,00001,Balance Sheet,Balance,,23/03/2018,0127667,-219.75,Revenue,Arval UK Ltd,18240,,
Chorley Borough Council,http://statistics.data.gov.uk/id/local-authority/30UE,Capital,Capital,Business Development & Growth,Main Contractor,03007,Capital Expenditure,Capital,Market walk redecoration works,09/03/2018,0127968,"20,000.00",Capital,Bagnalls,77004,,
Chorley Borough Council,http://statistics.data.gov.uk/id/local-authority/30UE,Service Management & Support,1009,Customer & Digital,Vehicles and Plant Maintenance,30045,Direct Transport Costs,5016,credited,29/03/2018,0128404,361.05,Revenue,Balmers Garden Machinery,17075,,
Chorley Borough Council,http://statistics.data.gov.uk/id/local-authority/30UE,Control Accounts,Control,Policy & Governance,General Balances,00100,Balance Sheet,Balance,Sep-17,29/03/2018,0128573,"3,508.67",Revenue,Barclaycard Commercial,59848,,
Chorley Borough Council,http://statistics.data.gov.uk/id/local-authority/30UE,Control Accounts,Control,Policy & Governance,General Balances,00100,Balance Sheet,Balance,Oct-17,29/03/2018,0128574,"7,441.16",Revenue,Barclaycard Commercial,59848,,
Chorley Borough Council,http://statistics.data.gov.uk/id/local-authority/30UE,Control Accounts,Control,Policy & Governance,General Balances,00100,Balance Sheet,Balance,Nov-17,29/03/2018,0128575,"5,796.38",Revenue,Barclaycard Commercial,59848,,
Chorley Borough Council,http://statistics.data.gov.uk/id/local-authority/30UE,Control Accounts,Control,Policy & Governance,General Balances,00100,Balance Sheet,Balance,Dec-17,29/03/2018,0128576,"3,017.29",Revenue,Barclaycard Commercial,59848,,
Chorley Borough Council,http://statistics.data.gov.uk/id/local-authority/30UE,Control Accounts,Control,Policy & Governance,General Balances,00100,Balance Sheet,Balance,Jan-18,29/03/2018,0128577,"1,952.15",Revenue,Barclaycard Commercial,59848,,
Chorley Borough Council,http://statistics.data.gov.uk/id/local-authority/30UE,Control Accounts,Control,Policy & Governance,General Balances,00100,Balance Sheet,Balance,Feb-18,29/03/2018,0128584,"4,488.01",Revenue,Barclaycard Commercial,59848,,
Chorley Borough Council,http://statistics.data.gov.uk/id/local-authority/30UE,Control Accounts,Control,Policy & Governance,General Balances,00100,Balance Sheet,Balance,Mar-18,29/03/2018,0128585,"2,412.45",Revenue,Barclaycard Commercial,59848,,
Chorley Borough Council,http://statistics.data.gov.uk/id/local-authority/30UE,Corporate Management,1008,Policy & Governance,Bank Charges,40151,Miscellaneous Expenses,5034,,16/03/2018,0127433,"1,313.95",Revenue,Barclaycard Merchant Services,61601,,
Chorley Borough Council,http://statistics.data.gov.uk/id/local-authority/30UE,Corporate Management,1008,Policy & Governance,Bank Charges,40151,Miscellaneous Expenses,5034,,16/03/2018,0127851,803.63,Revenue,Barclaycard Merchant Services,61601,,
Chorley Borough Council,http://statistics.data.gov.uk/id/local-authority/30UE,Corporate Management,1008,Policy & Governance,Bank Charges,40151,Miscellaneous Expenses,5034,,16/03/2018,0128201,387.97,Revenue,Barclaycard Merchant Services,61601,,
Chorley Borough Council,http://statistics.data.gov.uk/id/local-authority/30UE,Corporate Management,1008,Policy & Governance,Bank Charges,40151,Miscellaneous Expenses,5034,,16/03/2018,0128203,351.76,Revenue,Barclaycard Merchant Services,61601,,
Chorley Borough Council,http://statistics.data.gov.uk/id/local-authority/30UE,Central Support Services,1009,Business Development & Growth,Professional Fees,40063,Services,5027,"Architecture works for Cowling, Chorley. Joint venture with Homes England",14/03/2018,0127957,"15,870.68",Revenue,BDP,77191,,
Chorley Borough Council,http://statistics.data.gov.uk/id/local-authority/30UE,Business Support,1095,Business Development & Growth,Grants To Other Organisations,40127,Grants and Subscriptions,5031,shop refurb,27/03/2018,0128418,"3,705.00",Revenue,Bedspace Resource Ltd,77274,,
Chorley Borough Council,http://statistics.data.gov.uk/id/local-authority/30UE,Planning Policy,1092,Business Development & Growth,Furniture - Purchase,40012,"Equipment, Furniture & Materia",5023,Adapt 660 posture chair,07/03/2018,0127687,429.97,Revenue,Bennett Workplace Solutions Limited,62734,,
Chorley Borough Council,http://statistics.data.gov.uk/id/local-authority/30UE,Homelessness,1075,Early Intervention,Laundry,40042,"Clothing, Uniforms and Laundry",5025,Linen Cleaning service,16/03/2018,0128155,294.98,Revenue,Berendsen UK Ltd,20799,,
Chorley Borough Council,http://statistics.data.gov.uk/id/local-authority/30UE,Corporate Management,1008,Policy & Governance,Other Contributions,40145,Grants and Subscriptions,5031,ADDRESS REDACTED,16/03/2018,0128161,960.00,Revenue,NAME REDACTED,74772,,
Chorley Borough Council,http://statistics.data.gov.uk/id/local-authority/30UE,Economic Development,1096,Business Development & Growth,Christmas Lights,40179,Miscellaneous Expenses,5034,"Supply & erect, maintain and remove Christmas lights @ Chorley Town Centre 2017",27/03/2018,0128416,"25,473.00",Revenue,Blackpool Borough Council,16518,,
Chorley Borough Council,http://statistics.data.gov.uk/id/local-authority/30UE,Business Support,1095,Business Development & Growth,Christmas Lights,40179,Miscellaneous Expenses,5034,"Supply & erect, maintain and remove Christmas lights @Market Walk Shopping Centre , Chorley 2017",27/03/2018,0128417,"8,709.00",Revenue,Blackpool Borough Council,16518,,
Chorley Borough Council,http://statistics.data.gov.uk/id/local-authority/30UE,Unapportionable Central OHeads,1009,Business Development & Growth,Planned Maintenance,20006,Repairs Maintenance & Alts,5005,Carry out an asbestos management survey of Clayton Green Sports Centre,09/03/2018,0127936,"1,195.00",Revenue,Bradley Environmental Consultants Ltd,77154,,
Chorley Borough Council,http://statistics.data.gov.uk/id/local-authority/30UE,Unapportionable Central OHeads,1009,Policy & Governance,Professional Fees,40063,Services,5027,Grievance Investigation,14/03/2018,0128143,"4,663.10",Revenue,Bristow Associates Ltd,77146,,
Chorley Borough Council,http://statistics.data.gov.uk/id/local-authority/30UE,Unapportionable Central OHeads,1009,Business Development & Growth,Gas,20014,Energy Costs,5006,town hall,27/03/2018,0119532,981.12,Revenue,British Gas Business,22242,,
Chorley Borough Council,http://statistics.data.gov.uk/id/local-authority/30UE,Unapportionable Central OHeads,1009,Business Development & Growth,Gas,20014,Energy Costs,5006,town hall,27/03/2018,0119532,534.39,Revenue,British Gas Business,22242,,
Chorley Borough Council,http://statistics.data.gov.uk/id/local-authority/30UE,Democratic Represent and  Mgnt,1007,Business Development & Growth,Gas,20014,Energy Costs,5006,astley hall,27/03/2018,0119532,"1,128.49",Revenue,British Gas Business,22242,,
Chorley Borough Council,http://statistics.data.gov.uk/id/local-authority/30UE,Unapportionable Central OHeads,1009,Business Development & Growth,Gas,20014,Energy Costs,5006,union st,27/03/2018,0119532,811.05,Revenue,British Gas Business,22242,,
Chorley Borough Council,http://statistics.data.gov.uk/id/local-authority/30UE,Unapportionable Central OHeads,1009,Business Development & Growth,Gas,20014,Energy Costs,5006,union st,27/03/2018,0119532,723.44,Revenue,British Gas Business,22242,,
Chorley Borough Council,http://statistics.data.gov.uk/id/local-authority/30UE,Democratic Represent and  Mgnt,1007,Business Development & Growth,Gas,20014,Energy Costs,5006,eaves green cc,27/03/2018,0119532,187.87,Revenue,British Gas Business,22242,,
Chorley Borough Council,http://statistics.data.gov.uk/id/local-authority/30UE,Democratic Represent and  Mgnt,1007,Business Development & Growth,Gas,20014,Energy Costs,5006,astley hall farm,27/03/2018,0119532,117.46,Revenue,British Gas Business,22242,,
Chorley Borough Council,http://statistics.data.gov.uk/id/local-authority/30UE,Democratic Represent and  Mgnt,1007,Business Development & Growth,Gas,20014,Energy Costs,5006,astley village cc,27/03/2018,0119532,214.06,Revenue,British Gas Business,22242,,
Chorley Borough Council,http://statistics.data.gov.uk/id/local-authority/30UE,Democratic Represent and  Mgnt,1007,Business Development & Growth,Gas,20014,Energy Costs,5006,clayton brook,27/03/2018,0119532,115.20,Revenue,British Gas Business,22242,,
Chorley Borough Council,http://statistics.data.gov.uk/id/local-authority/30UE,Democratic Represent and  Mgnt,1007,Business Development & Growth,Gas,20014,Energy Costs,5006,astley cottage,27/03/2018,0119532,121.96,Revenue,British Gas Business,22242,,
Chorley Borough Council,http://statistics.data.gov.uk/id/local-authority/30UE,Unapportionable Central OHeads,1009,Business Development & Growth,Gas,20014,Energy Costs,5006,bengal,27/03/2018,0119532,168.43,Revenue,British Gas Business,22242,,
Chorley Borough Council,http://statistics.data.gov.uk/id/local-authority/30UE,Service Management & Support,1009,Business Development & Growth,Gas,20014,Energy Costs,5006,yarrow valley,27/03/2018,0119532,9.29,Revenue,British Gas Business,22242,,
Chorley Borough Council,http://statistics.data.gov.uk/id/local-authority/30UE,Community Development,1097,Business Development & Growth,Gas,20014,Energy Costs,5006,accounting,27/03/2018,0119532,44.42,Revenue,British Gas Business,22242,,
Chorley Borough Council,http://statistics.data.gov.uk/id/local-authority/30UE,Community Development,1097,Business Development & Growth,Gas,20014,Energy Costs,5006,accounting,27/03/2018,0119532,38.87,Revenue,British Gas Business,22242,,
Chorley Borough Council,http://statistics.data.gov.uk/id/local-authority/30UE,Democratic Represent and  Mgnt,1007,Business Development & Growth,Gas,20014,Energy Costs,5006,astley coach,27/03/2018,0119532,359.72,Revenue,British Gas Business,22242,,
Chorley Borough Council,http://statistics.data.gov.uk/id/local-authority/30UE,Homelessness,1075,Business Development & Growth,Gas,20014,Energy Costs,5006,cotswold,27/03/2018,0125268,464.98,Revenue,British Gas Business,22242,,
Chorley Borough Council,http://statistics.data.gov.uk/id/local-authority/30UE,Homelessness,1075,Early Intervention,Agency Staff,13000,Direct Employee Expenses,5001,Supply of temp Support worker,02/03/2018,0127873,292.95,Revenue,BS Project Services Ltd,20328,,
Chorley Borough Council,http://statistics.data.gov.uk/id/local-authority/30UE,Central Support Services,1009,Early Intervention,Telephones - Rentals,40083,Communication and Computing,5028,cctv,29/03/2018,0128234,"1,768.36",Revenue,BT Redcare,21115,,
Chorley Borough Council,http://statistics.data.gov.uk/id/local-authority/30UE,Capital,Capital,Policy & Governance,Main Contractor,03007,Capital Expenditure,Capital,Re-decoration of the Townley Parker Room - 3000.00,23/03/2018,0128307,"3,141.25",Capital,Bullen Conservation Ltd,68424,,
Chorley Borough Council,http://statistics.data.gov.uk/id/local-authority/30UE,Service Management & Support,1009,Customer & Digital,External Contractor,40198,Miscellaneous Expenses,5034,Emptying of interceptor and clearing of drains in Bengal St depot as required for EA licence at agreed price 65per hour 4hrs ,07/03/2018,0127883,325.00,Revenue,C J Lyon,16579,,
Chorley Borough Council,http://statistics.data.gov.uk/id/local-authority/30UE,Business Support,1095,Business Development & Growth,Miscellaneous Expenses,40200,Miscellaneous Expenses,5034,Price for the manufacture of brackets to accommodate the do not enter tape dispenser The brackets would be made from stainless,14/03/2018,0128064,487.20,Revenue,Catterall & Wood Ltd,59988,,
Chorley Borough Council,http://statistics.data.gov.uk/id/local-authority/30UE,Economic Development,1096,Business Development & Growth,Miscellaneous Expenses,40200,Miscellaneous Expenses,5034,For keynote speaker costs for Annual Business Network event 19th April 2018,23/03/2018,0128323,"2,625.00",Revenue,Champions (UK) plc,77262,,
Chorley Borough Council,http://statistics.data.gov.uk/id/local-authority/30UE,Democratic Represent and  Mgnt,1007,Policy & Governance,Grants To Other Organisations,40127,Grants and Subscriptions,5031,Councillor Community Grant 2017/18,29/03/2018,0128509,250.00,Revenue,Charnock Richard Pre-School,59143,,
Chorley Borough Council,http://statistics.data.gov.uk/id/local-authority/30UE,Business Support,1095,Business Development & Growth,Grants To Other Organisations,40127,Grants and Subscriptions,5031,sib grant,16/03/2018,0128181,250.00,Revenue,NAME REDACTED,77229,,
Chorley Borough Council,http://statistics.data.gov.uk/id/local-authority/30UE,Parking Services,1066,Business Development & Growth,External Contractors,50008,Private Contractors,5042,Processing 079 - Resident Permit Postage & Packing (estimated) for period of 01.04.17 - 31.03.18,02/03/2018,0127862,919.38,Revenue,Chipside Ltd,22063,,
Chorley Borough Council,http://statistics.data.gov.uk/id/local-authority/30UE,Parking Services,1066,Business Development & Growth,External Contractors,50008,Private Contractors,5042,Processing 080 - Business Permit Postage & Packing (estimated) for period of 01.04.17 - 31.03.18,02/03/2018,0127862,29.85,Revenue,Chipside Ltd,22063,,
Chorley Borough Council,http://statistics.data.gov.uk/id/local-authority/30UE,Parking Services,1066,Business Development & Growth,External Contractors,50008,Private Contractors,5042,Processing 085 - Reminders letters for Resident / Business Permits Postage & Packing estimated for period of 01.04.17 31.03.18,02/03/2018,0127862,65.96,Revenue,Chipside Ltd,22063,,
Chorley Borough Council,http://statistics.data.gov.uk/id/local-authority/30UE,Corporate Management,1008,Early Intervention,Taxi Testing & Vehicle Safety Report,40234,Services,5027,MOT Taxi Testing February 2018,07/03/2018,0127928,"1,700.35",Revenue,Chorley Autocare Ltd,17110,,
Chorley Borough Council,http://statistics.data.gov.uk/id/local-authority/30UE,Corporate Management,1008,Early Intervention,Taxi Testing & Vehicle Safety Report,40234,Services,5027,Taxi Test,07/03/2018,0127928,265.05,Revenue,Chorley Autocare Ltd,17110,,
Chorley Borough Council,http://statistics.data.gov.uk/id/local-authority/30UE,Unapportionable Central OHeads,1009,Chief Executive,Miscellaneous Expenses,40200,Miscellaneous Expenses,5034,milk,21/03/2018,0128299,3.20,Revenue,Chorley BC Petty Cash,16301,,
Chorley Borough Council,http://statistics.data.gov.uk/id/local-authority/30UE,Unapportionable Central OHeads,1009,Chief Executive,Miscellaneous Expenses,40200,Miscellaneous Expenses,5034,postage,21/03/2018,0128299,17.41,Revenue,Chorley BC Petty Cash,16301,,
Chorley Borough Council,http://statistics.data.gov.uk/id/local-authority/30UE,Central Support Services,1009,Chief Executive,Mobile Voice and Data,40086,Communication and Computing,5028,postage,21/03/2018,0128299,2.00,Revenue,Chorley BC Petty Cash,16301,,
Chorley Borough Council,http://statistics.data.gov.uk/id/local-authority/30UE,Central Support Services,1009,Chief Executive,Play Events,40181,Miscellaneous Expenses,5034,play day,21/03/2018,0128299,3.34,Revenue,Chorley BC Petty Cash,16301,,
Chorley Borough Council,http://statistics.data.gov.uk/id/local-authority/30UE,Central Support Services,1009,Chief Executive,Miscellaneous Expenses,40200,Miscellaneous Expenses,5034,cooking,21/03/2018,0128299,20.00,Revenue,Chorley BC Petty Cash,16301,,
Chorley Borough Council,http://statistics.data.gov.uk/id/local-authority/30UE,Central Support Services,1009,Chief Executive,Miscellaneous Expenses,40200,Miscellaneous Expenses,5034,cooking,21/03/2018,0128299,6.67,Revenue,Chorley BC Petty Cash,16301,,
Chorley Borough Council,http://statistics.data.gov.uk/id/local-authority/30UE,Democratic Represent and  Mgnt,1007,Chief Executive,Use Of Transport - Mayoral Car,30015,Transport Recharges,5017,car wash,21/03/2018,0128299,6.00,Revenue,Chorley BC Petty Cash,16301,,
Chorley Borough Council,http://statistics.data.gov.uk/id/local-authority/30UE,Unapportionable Central OHeads,1009,Chief Executive,Uniforms,40039,"Clothing, Uniforms and Laundry",5025,uniform,21/03/2018,0128299,10.00,Revenue,Chorley BC Petty Cash,16301,,
Chorley Borough Council,http://statistics.data.gov.uk/id/local-authority/30UE,Central Support Services,1009,Chief Executive,Miscellaneous Expenses,40200,Miscellaneous Expenses,5034,cooking,21/03/2018,0128299,14.99,Revenue,Chorley BC Petty Cash,16301,,
Chorley Borough Council,http://statistics.data.gov.uk/id/local-authority/30UE,Central Support Services,1009,Chief Executive,Miscellaneous Expenses,40200,Miscellaneous Expenses,5034,paints,21/03/2018,0128299,10.38,Revenue,Chorley BC Petty Cash,16301,,
Chorley Borough Council,http://statistics.data.gov.uk/id/local-authority/30UE,Central Support Services,1009,Chief Executive,Miscellaneous Expenses,40200,Miscellaneous Expenses,5034,paints,21/03/2018,0128299,11.37,Revenue,Chorley BC Petty Cash,16301,,
Chorley Borough Council,http://statistics.data.gov.uk/id/local-authority/30UE,Central Support Services,1009,Chief Executive,Miscellaneous Expenses,40200,Miscellaneous Expenses,5034,cooking,21/03/2018,0128299,9.58,Revenue,Chorley BC Petty Cash,16301,,
Chorley Borough Council,http://statistics.data.gov.uk/id/local-authority/30UE,Central Support Services,1009,Chief Executive,Miscellaneous Expenses,40200,Miscellaneous Expenses,5034,cooking,21/03/2018,0128299,2.28,Revenue,Chorley BC Petty Cash,16301,,
Chorley Borough Council,http://statistics.data.gov.uk/id/local-authority/30UE,Central Support Services,1009,Chief Executive,Miscellaneous Expenses,40200,Miscellaneous Expenses,5034,cooking,21/03/2018,0128299,13.19,Revenue,Chorley BC Petty Cash,16301,,
Chorley Borough Council,http://statistics.data.gov.uk/id/local-authority/30UE,Central Support Services,1009,Chief Executive,Miscellaneous Expenses,40200,Miscellaneous Expenses,5034,cooking,21/03/2018,0128299,4.39,Revenue,Chorley BC Petty Cash,16301,,
Chorley Borough Council,http://statistics.data.gov.uk/id/local-authority/30UE,Central Support Services,1009,Chief Executive,Miscellaneous Expenses,40200,Miscellaneous Expenses,5034,paints,21/03/2018,0128299,16.63,Revenue,Chorley BC Petty Cash,16301,,
Chorley Borough Council,http://statistics.data.gov.uk/id/local-authority/30UE,Central Support Services,1009,Chief Executive,Miscellaneous Expenses,40200,Miscellaneous Expenses,5034,paints,21/03/2018,0128299,14.57,Revenue,Chorley BC Petty Cash,16301,,
Chorley Borough Council,http://statistics.data.gov.uk/id/local-authority/30UE,Democratic Represent and  Mgnt,1007,Chief Executive,Tools & Equipment - Purchase,40003,"Equipment, Furniture & Materia",5023,batteries,21/03/2018,0128299,2.71,Revenue,Chorley BC Petty Cash,16301,,
Chorley Borough Council,http://statistics.data.gov.uk/id/local-authority/30UE,Unapportionable Central OHeads,1009,Chief Executive,Tools & Equipment - Purchase,40003,"Equipment, Furniture & Materia",5023,keys,21/03/2018,0128299,7.50,Revenue,Chorley BC Petty Cash,16301,,
Chorley Borough Council,http://statistics.data.gov.uk/id/local-authority/30UE,Unapportionable Central OHeads,1009,Chief Executive,Tools & Equipment - Purchase,40003,"Equipment, Furniture & Materia",5023,dishwasher tabs,21/03/2018,0128299,7.49,Revenue,Chorley BC Petty Cash,16301,,
Chorley Borough Council,http://statistics.data.gov.uk/id/local-authority/30UE,Unapportionable Central OHeads,1009,Chief Executive,Tools & Equipment - Purchase,40003,"Equipment, Furniture & Materia",5023,tea towels,21/03/2018,0128299,4.98,Revenue,Chorley BC Petty Cash,16301,,
Chorley Borough Council,http://statistics.data.gov.uk/id/local-authority/30UE,Unapportionable Central OHeads,1009,Chief Executive,Refreshments,40036,Catering,5024,milk,21/03/2018,0128299,0.99,Revenue,Chorley BC Petty Cash,16301,,
Chorley Borough Council,http://statistics.data.gov.uk/id/local-authority/30UE,Unapportionable Central OHeads,1009,Chief Executive,Cleaning Materials,40019,"Equipment, Furniture & Materia",5023,dishwasher tabs,21/03/2018,0128299,7.49,Revenue,Chorley BC Petty Cash,16301,,
Chorley Borough Council,http://statistics.data.gov.uk/id/local-authority/30UE,Central Support Services,1009,Chief Executive,Sports Development Initiatives,40186,Miscellaneous Expenses,5034,folders,21/03/2018,0128299,2.50,Revenue,Chorley BC Petty Cash,16301,,
Chorley Borough Council,http://statistics.data.gov.uk/id/local-authority/30UE,Central Support Services,1009,Chief Executive,Sports Development Initiatives,40186,Miscellaneous Expenses,5034,milk and tea,21/03/2018,0128299,5.50,Revenue,Chorley BC Petty Cash,16301,,
Chorley Borough Council,http://statistics.data.gov.uk/id/local-authority/30UE,Central Support Services,1009,Chief Executive,Sports Development Initiatives,40186,Miscellaneous Expenses,5034,items,21/03/2018,0128299,5.53,Revenue,Chorley BC Petty Cash,16301,,
Chorley Borough Council,http://statistics.data.gov.uk/id/local-authority/30UE,Central Support Services,1009,Chief Executive,Sports Development Initiatives,40186,Miscellaneous Expenses,5034,items,21/03/2018,0128299,19.57,Revenue,Chorley BC Petty Cash,16301,,
Chorley Borough Council,http://statistics.data.gov.uk/id/local-authority/30UE,Unapportionable Central OHeads,1009,Chief Executive,Tools & Equipment - Purchase,40003,"Equipment, Furniture & Materia",5023,socket covers,21/03/2018,0128299,3.25,Revenue,Chorley BC Petty Cash,16301,,
Chorley Borough Council,http://statistics.data.gov.uk/id/local-authority/30UE,Unapportionable Central OHeads,1009,Chief Executive,Tools & Equipment - Purchase,40003,"Equipment, Furniture & Materia",5023,key,21/03/2018,0128299,5.00,Revenue,Chorley BC Petty Cash,16301,,
Chorley Borough Council,http://statistics.data.gov.uk/id/local-authority/30UE,Democratic Represent and  Mgnt,1007,Chief Executive,Tools & Equipment - Purchase,40003,"Equipment, Furniture & Materia",5023,milk,21/03/2018,0128299,1.10,Revenue,Chorley BC Petty Cash,16301,,
Chorley Borough Council,http://statistics.data.gov.uk/id/local-authority/30UE,Central Support Services,1009,Chief Executive,Children's Activities,40188,Miscellaneous Expenses,5034,materials,21/03/2018,0128299,10.00,Revenue,Chorley BC Petty Cash,16301,,
Chorley Borough Council,http://statistics.data.gov.uk/id/local-authority/30UE,Central Support Services,1009,Chief Executive,Sports Development Initiatives,40186,Miscellaneous Expenses,5034,Expenses,21/03/2018,0128299,2.00,Revenue,Chorley BC Petty Cash,16301,,
Chorley Borough Council,http://statistics.data.gov.uk/id/local-authority/30UE,Central Support Services,1009,Chief Executive,Sports Development Initiatives,40186,Miscellaneous Expenses,5034,Expenses,21/03/2018,0128299,1.31,Revenue,Chorley BC Petty Cash,16301,,
Chorley Borough Council,http://statistics.data.gov.uk/id/local-authority/30UE,Central Support Services,1009,Chief Executive,Sports Development Initiatives,40186,Miscellaneous Expenses,5034,Expenses,21/03/2018,0128299,0.65,Revenue,Chorley BC Petty Cash,16301,,
Chorley Borough Council,http://statistics.data.gov.uk/id/local-authority/30UE,Central Support Services,1009,Chief Executive,Sports Development Initiatives,40186,Miscellaneous Expenses,5034,Expenses,21/03/2018,0128299,2.25,Revenue,Chorley BC Petty Cash,16301,,
Chorley Borough Council,http://statistics.data.gov.uk/id/local-authority/30UE,Central Support Services,1009,Chief Executive,Sports Development Initiatives,40186,Miscellaneous Expenses,5034,Expenses,21/03/2018,0128299,19.43,Revenue,Chorley BC Petty Cash,16301,,
Chorley Borough Council,http://statistics.data.gov.uk/id/local-authority/30UE,Unapportionable Central OHeads,1009,Chief Executive,Refreshments,40036,Catering,5024,juice,21/03/2018,0128299,6.00,Revenue,Chorley BC Petty Cash,16301,,
Chorley Borough Council,http://statistics.data.gov.uk/id/local-authority/30UE,Central Support Services,1009,Chief Executive,Miscellaneous Expenses,40200,Miscellaneous Expenses,5034,cooking,21/03/2018,0128299,15.74,Revenue,Chorley BC Petty Cash,16301,,
Chorley Borough Council,http://statistics.data.gov.uk/id/local-authority/30UE,Central Support Services,1009,Chief Executive,Miscellaneous Expenses,40200,Miscellaneous Expenses,5034,cooking,21/03/2018,0128299,10.83,Revenue,Chorley BC Petty Cash,16301,,
Chorley Borough Council,http://statistics.data.gov.uk/id/local-authority/30UE,Unapportionable Central OHeads,1009,Chief Executive,Refreshments,40036,Catering,5024,sugar and biscuits,21/03/2018,0128299,4.98,Revenue,Chorley BC Petty Cash,16301,,
Chorley Borough Council,http://statistics.data.gov.uk/id/local-authority/30UE,Unapportionable Central OHeads,1009,Chief Executive,Tools & Equipment - Purchase,40003,"Equipment, Furniture & Materia",5023,lightbulb,21/03/2018,0128299,2.90,Revenue,Chorley BC Petty Cash,16301,,
Chorley Borough Council,http://statistics.data.gov.uk/id/local-authority/30UE,Unapportionable Central OHeads,1009,Chief Executive,Refreshments,40036,Catering,5024,milk,21/03/2018,0128299,1.10,Revenue,Chorley BC Petty Cash,16301,,
Chorley Borough Council,http://statistics.data.gov.uk/id/local-authority/30UE,Central Support Services,1009,Chief Executive,Miscellaneous Expenses,40200,Miscellaneous Expenses,5034,cooking,21/03/2018,0128299,13.21,Revenue,Chorley BC Petty Cash,16301,,
Chorley Borough Council,http://statistics.data.gov.uk/id/local-authority/30UE,Central Support Services,1009,Chief Executive,Miscellaneous Expenses,40200,Miscellaneous Expenses,5034,cooking,21/03/2018,0128299,19.77,Revenue,Chorley BC Petty Cash,16301,,
Chorley Borough Council,http://statistics.data.gov.uk/id/local-authority/30UE,Capital,Capital,Early Intervention,Grants,03002,Capital Expenditure,Capital,soundproofing works,29/03/2018,0128545,"2,950.00",Capital,Chorley Community Housing,76692,,
Chorley Borough Council,http://statistics.data.gov.uk/id/local-authority/30UE,Corporate Management,1008,Policy & Governance,Publicity - Advertising,40157,Miscellaneous Expenses,5034,Four months Market Walk awareness advertising on Chorley FM,19/03/2018,0128223,396.00,Revenue,Chorley FM Ltd,50669,,
Chorley Borough Council,http://statistics.data.gov.uk/id/local-authority/30UE,Capital,Capital,Chief Executive,Other Capital Grants/Loans,03000,Capital Expenditure,Capital,Chorley Council Contribution,16/03/2018,0127722,"300,000.00",Capital,Chorley Youth Zone,76620,,
Chorley Borough Council,http://statistics.data.gov.uk/id/local-authority/30UE,Capital,Capital,Chief Executive,Other Capital Grants/Loans,03000,Capital Expenditure,Capital,Chorley Council Contribution,29/03/2018,0128291,"245,000.00",Capital,Chorley Youth Zone,76620,,
Chorley Borough Council,http://statistics.data.gov.uk/id/local-authority/30UE,Corporate Management,1008,Chief Executive,Professional Fees,14011,Direct Employee Expenses,5001,Professional Qualification PQ Full membership,09/03/2018,0128033,310.00,Revenue,CIPFA,16201,,
Chorley Borough Council,http://statistics.data.gov.uk/id/local-authority/30UE,Unapportionable Central OHeads,1009,Policy & Governance,General Subscriptions,40146,Grants and Subscriptions,5031,TISonline Full Subscription 01/04/2018 to 31/03/2019 for Chorley Council and South Ribble Borough Council,02/03/2018,0127860,"4,237.50",Revenue,CIPFA Business Ltd,16247,,
Chorley Borough Council,http://statistics.data.gov.uk/id/local-authority/30UE,Unapportionable Central OHeads,1009,Policy & Governance,General Subscriptions,40146,Grants and Subscriptions,5031,Finance Advisory Network 2018-19,16/03/2018,0128134,"4,360.00",Revenue,CIPFA Business Ltd,16247,,
Chorley Borough Council,http://statistics.data.gov.uk/id/local-authority/30UE,Unapportionable Central OHeads,1009,Policy & Governance,General Subscriptions,40146,Grants and Subscriptions,5031,Finance Advisory Network 2018-19 - add on for shared service,16/03/2018,0128152,"1,555.00",Revenue,CIPFA Business Ltd,16247,,
Chorley Borough Council,http://statistics.data.gov.uk/id/local-authority/30UE,Unapportionable Central OHeads,1009,Policy & Governance,Publications,40054,"Printing, Stationery & General",5026,CIPFA Publications Annual Subscription 2018-19 for Chorley Council and South Ribble Borough Council shared service.,27/03/2018,0128321,"2,685.00",Revenue,CIPFA Business Ltd,16247,,
Chorley Borough Council,http://statistics.data.gov.uk/id/local-authority/30UE,Unapportionable Central OHeads,1009,Policy & Governance,IT Software - Annual Licences,40101,Communication and Computing,5028,ICON Hosted Annual Subscription 1/4/18 to 31/3/19 Year 3 of 3,21/03/2018,0127746,"15,677.44",Revenue,Civica UK Limited,17463,,
Chorley Borough Council,http://statistics.data.gov.uk/id/local-authority/30UE,Unapportionable Central OHeads,1009,Business Development & Growth,Planned Maintenance,20006,Repairs Maintenance & Alts,5005,2nd Blanket PPM works for 2016.,29/03/2018,0128490,368.00,Revenue,Classic Lifts Limited,20897,,
Chorley Borough Council,http://statistics.data.gov.uk/id/local-authority/30UE,Unapportionable Central OHeads,1009,Business Development & Growth,General Repairs - Reactive,20004,Repairs Maintenance & Alts,5005,Blanket order for reactive repairs,29/03/2018,0128494,775.55,Revenue,Classic Lifts Limited,20897,,
Chorley Borough Council,http://statistics.data.gov.uk/id/local-authority/30UE,Service Management & Support,1009,Customer & Digital,Supplies-Highways,40026,"Equipment, Furniture & Materia",5023,"Delivery 10 x tonne of 6mm Brown Rock Salt (Traditional Scheme) to our Bengal St Depot, Chorley, PR7 1SA.  ",07/03/2018,0127914,"1,146.07",Revenue,Compass Minerals UK Ltd,18087,,
Chorley Borough Council,http://statistics.data.gov.uk/id/local-authority/30UE,Capital,Capital,Business Development & Growth,Main Contractor,03007,Capital Expenditure,Capital,Phase 1 - 6 of Yarrow Valley Footpath Works as set out in the Condition of Contract Documentation.,23/03/2018,0128389,"9,984.00",Capital,Conservation Contracts North West,20520,,
Chorley Borough Council,http://statistics.data.gov.uk/id/local-authority/30UE,Central Support Services,1009,Customer & Digital,Miscellaneous Expenses,40200,Miscellaneous Expenses,5034,Replacement Fibre around the town centre.,07/03/2018,0126257,"9,281.85",Revenue,Core Integrated Solutions,77043,,
Chorley Borough Council,http://statistics.data.gov.uk/id/local-authority/30UE,Central Support Services,1009,Customer & Digital,Computer Equipment-Maintenance,40105,Communication and Computing,5028,Fibre duct repair works at 4 locations: Union Street Pit 30 Town Hall front door area (2 blockages) Market Street Pit 20,07/03/2018,0127110,"3,764.00",Revenue,Core Integrated Solutions,77043,,
Chorley Borough Council,http://statistics.data.gov.uk/id/local-authority/30UE,Central Support Services,1009,Customer & Digital,Computer Equipment-Maintenance,40105,Communication and Computing,5028,Fibre duct repair works at 4 locations: Union Street Pit 30 Town Hall front door area (2 blockages) Market Street Pit 20,07/03/2018,0127111,"2,753.85",Revenue,Core Integrated Solutions,77043,,
Chorley Borough Council,http://statistics.data.gov.uk/id/local-authority/30UE,Unapportionable Central OHeads,1009,Business Development & Growth,Planned Maintenance,20006,Repairs Maintenance & Alts,5005,Blanket PPM order from August 2017,09/03/2018,0127183,494.84,Revenue,Corlett Electrical Eng Co Ltd,16271,,
Chorley Borough Council,http://statistics.data.gov.uk/id/local-authority/30UE,Unapportionable Central OHeads,1009,Business Development & Growth,Planned Maintenance,20006,Repairs Maintenance & Alts,5005,Blanket PPM order from August 2017,09/03/2018,0127188,356.16,Revenue,Corlett Electrical Eng Co Ltd,16271,,
Chorley Borough Council,http://statistics.data.gov.uk/id/local-authority/30UE,Unapportionable Central OHeads,1009,Business Development & Growth,Planned Maintenance,20006,Repairs Maintenance & Alts,5005,Blanket PPM order from August 2017,09/03/2018,0127197,265.34,Revenue,Corlett Electrical Eng Co Ltd,16271,,
Chorley Borough Council,http://statistics.data.gov.uk/id/local-authority/30UE,Unapportionable Central OHeads,1009,Business Development & Growth,Planned Maintenance,20006,Repairs Maintenance & Alts,5005,Blanket PPM order from August 2017,09/03/2018,0127230,634.36,Revenue,Corlett Electrical Eng Co Ltd,16271,,
Chorley Borough Council,http://statistics.data.gov.uk/id/local-authority/30UE,Unapportionable Central OHeads,1009,Business Development & Growth,Planned Maintenance,20006,Repairs Maintenance & Alts,5005,Security lighting on site for the cleaners etc dark mornings / nights,09/03/2018,0127785,293.00,Revenue,Corlett Electrical Eng Co Ltd,16271,,
Chorley Borough Council,http://statistics.data.gov.uk/id/local-authority/30UE,Unapportionable Central OHeads,1009,Business Development & Growth,General Repairs - Reactive,20004,Repairs Maintenance & Alts,5005,Blanket Order for reactive repairs WEF 1/4/17,09/03/2018,0127871,352.21,Revenue,Corlett Electrical Eng Co Ltd,16271,,
Chorley Borough Council,http://statistics.data.gov.uk/id/local-authority/30UE,Unapportionable Central OHeads,1009,Business Development & Growth,General Repairs - Reactive,20004,Repairs Maintenance & Alts,5005,Blanket Order for reactive repairs WEF 1/4/17,23/03/2018,0128221,388.60,Revenue,Corlett Electrical Eng Co Ltd,16271,,
Chorley Borough Council,http://statistics.data.gov.uk/id/local-authority/30UE,Business Support,1095,Business Development & Growth,Gas,20014,Energy Costs,5006,feb 18 to mar 18,16/03/2018,0128127,250.85,Revenue,Corona Energy Retail 2 Ltd,67249,,
Chorley Borough Council,http://statistics.data.gov.uk/id/local-authority/30UE,Unapportionable Central OHeads,1009,Business Development & Growth,Gas,20014,Energy Costs,5006,union st,27/03/2018,0128357,"1,088.99",Revenue,Corona Energy Retail 2 Ltd,67249,,
Chorley Borough Council,http://statistics.data.gov.uk/id/local-authority/30UE,Unapportionable Central OHeads,1009,Business Development & Growth,Gas,20014,Energy Costs,5006,town hall,27/03/2018,0128358,681.37,Revenue,Corona Energy Retail 2 Ltd,67249,,
Chorley Borough Council,http://statistics.data.gov.uk/id/local-authority/30UE,Democratic Represent and  Mgnt,1007,Business Development & Growth,Gas,20014,Energy Costs,5006,astley coach house,27/03/2018,0128359,351.73,Revenue,Corona Energy Retail 2 Ltd,67249,,
Chorley Borough Council,http://statistics.data.gov.uk/id/local-authority/30UE,Democratic Represent and  Mgnt,1007,Business Development & Growth,Gas,20014,Energy Costs,5006,astley hall,27/03/2018,0128370,"1,076.43",Revenue,Corona Energy Retail 2 Ltd,67249,,
Chorley Borough Council,http://statistics.data.gov.uk/id/local-authority/30UE,Homelessness,1075,Business Development & Growth,Gas,20014,Energy Costs,5006,cotslwold,27/03/2018,0128375,970.07,Revenue,Corona Energy Retail 2 Ltd,67249,,
Chorley Borough Council,http://statistics.data.gov.uk/id/local-authority/30UE,Recreation & Sport,1037,Business Development & Growth,Gas,20014,Energy Costs,5006,buttermere,27/03/2018,0128378,385.78,Revenue,Corona Energy Retail 2 Ltd,67249,,
Chorley Borough Council,http://statistics.data.gov.uk/id/local-authority/30UE,Unapportionable Central OHeads,1009,Policy & Governance,HR Approved Training Expenses,17001,Indirect Employee Expenses,5002,Coaching in March plus travel expenses,29/03/2018,0128524,875.10,Revenue,Create Edge Ltd,77142,,
Chorley Borough Council,http://statistics.data.gov.uk/id/local-authority/30UE,Unapportionable Central OHeads,1009,Policy & Governance,HR Approved Training Expenses,17001,Indirect Employee Expenses,5002,Maximising strengths course 20/03/18,29/03/2018,0128552,635.10,Revenue,Create Edge Ltd,77142,,
Chorley Borough Council,http://statistics.data.gov.uk/id/local-authority/30UE,Unapportionable Central OHeads,1009,Policy & Governance,HR Approved Training Expenses,17001,Indirect Employee Expenses,5002,Coaching for NAME REDACTED - February,29/03/2018,0128553,335.10,Revenue,Create Edge Ltd,77142,,
Chorley Borough Council,http://statistics.data.gov.uk/id/local-authority/30UE,Unapportionable Central OHeads,1009,Chief Executive,Miscellaneous Expenses,40200,Miscellaneous Expenses,5034,reimbursement,14/03/2018,0127685,963.40,Revenue,NAME REDACTED,77197,,
Chorley Borough Council,http://statistics.data.gov.uk/id/local-authority/30UE,Business Support,1095,Business Development & Growth,Other Capital Related Fees,03024,Capital Expenditure,Capital,"For stage 5 payment for Digital Office Park, Chorley  2800 plus VAT",29/03/2018,0128513,"2,800.00",Revenue,Curtins Consulting Engineers,20049,,
Chorley Borough Council,http://statistics.data.gov.uk/id/local-authority/30UE,Central Support Services,1009,Customer & Digital,Computer Equipment-Purchase,40098,Communication and Computing,5028,Brother MFC-9330CDW Colour Laser All-in-one Printer   1 x 195 Black -1 x 45.00 Cyan- 1 x 44.00 Magenta-1 x 44.00 Yellow,14/03/2018,0127692,381.95,Revenue,DAC Technology Ltd,76398,,
Chorley Borough Council,http://statistics.data.gov.uk/id/local-authority/30UE,Central Support Services,1009,Customer & Digital,Computer Equipment-Purchase,40098,Communication and Computing,5028,"2M Elite Displayport to DVI Connector Cable Male to Male (Black) Gold Connectors	x 660",29/03/2018,0128308,"3,234.00",Revenue,DAC Technology Ltd,76398,,
Chorley Borough Council,http://statistics.data.gov.uk/id/local-authority/30UE,Corporate Management,1008,Customer & Digital,Furniture - Purchase,40012,"Equipment, Furniture & Materia",5023,"Supply, Delivery and Installation of Office Furniture Aspen AS14 Desk 1400 x 800 x 730h as specified in the ITQ schedule Delivery",21/03/2018,0128274,"1,301.25",Revenue,Diamond Business Interiors Ltd,53722,,
Chorley Borough Council,http://statistics.data.gov.uk/id/local-authority/30UE,Corporate Management,1008,Customer & Digital,Furniture - Purchase,40012,"Equipment, Furniture & Materia",5023,"Supply, delivery and installation of office furniture CB100 - 10000W Cable Basket for Aspen desk as specified in the ITQ schedule",21/03/2018,0128274,252.00,Revenue,Diamond Business Interiors Ltd,53722,,
Chorley Borough Council,http://statistics.data.gov.uk/id/local-authority/30UE,Corporate Management,1008,Customer & Digital,Furniture - Purchase,40012,"Equipment, Furniture & Materia",5023,"Supply, Delivery and Installation of Office Furniture OC97FDA Orthapaedica Task Chair (Black) as specified in the ITQ schedule",21/03/2018,0128274,"2,683.35",Revenue,Diamond Business Interiors Ltd,53722,,
Chorley Borough Council,http://statistics.data.gov.uk/id/local-authority/30UE,Corporate Management,1008,Customer & Digital,Furniture - Purchase,40012,"Equipment, Furniture & Materia",5023,"Supply, delivery and Installation of office furniture LKS04D28EW4 Silverline 4 door locker 1780h x 458w x 458d Grey supplied",21/03/2018,0128274,651.32,Revenue,Diamond Business Interiors Ltd,53722,,
Chorley Borough Council,http://statistics.data.gov.uk/id/local-authority/30UE,Corporate Management,1008,Customer & Digital,Furniture - Purchase,40012,"Equipment, Furniture & Materia",5023,"Supply, delivery and installation of office furniture Conset 501-7 Sit Stand Desk Heart Shaped Maple Top as specified in the ITQ",21/03/2018,0128274,312.00,Revenue,Diamond Business Interiors Ltd,53722,,
Chorley Borough Council,http://statistics.data.gov.uk/id/local-authority/30UE,Central Support Services,1009,Customer & Digital,IT Software - Annual Licences,40101,Communication and Computing,5028,ProPrint Academy Class B (75k to 125k) - ALF,02/03/2018,0127866,"1,798.00",Revenue,Document Output Solutions UK Ltd,21304,,
Chorley Borough Council,http://statistics.data.gov.uk/id/local-authority/30UE,Central Support Services,1009,Customer & Digital,IT Software - Annual Licences,40101,Communication and Computing,5028,ProPrint EDO Email / Fax option Class B (75k to 125k) - ALF,02/03/2018,0127866,803.00,Revenue,Document Output Solutions UK Ltd,21304,,
Chorley Borough Council,http://statistics.data.gov.uk/id/local-authority/30UE,Unapportionable Central OHeads,1009,Business Development & Growth,General Repairs - Reactive,20004,Repairs Maintenance & Alts,5005,Carry out soil sampling at the former travellers site at Hut Lane Heath Charnock,29/03/2018,0128391,"2,380.00",Revenue,Ecofficiency Ltd,68710,,
Chorley Borough Council,http://statistics.data.gov.uk/id/local-authority/30UE,Central Support Services,1009,Customer & Digital,Consultants` Fees,40077,Services,5027,Annual billing configuration work 2 days consultancy at 400 each + VAT,14/03/2018,0128079,800.00,Revenue,EDM Consulting Ltd,55511,,
Chorley Borough Council,http://statistics.data.gov.uk/id/local-authority/30UE,Central Support Services,1009,Customer & Digital,Mobile Voice and Data,40086,Communication and Computing,5028,Mar-18,09/03/2018,0127991,419.78,Revenue,EE - Orange,16486,,
Chorley Borough Council,http://statistics.data.gov.uk/id/local-authority/30UE,Central Support Services,1009,Customer & Digital,Mobile Voice and Data,40086,Communication and Computing,5028,Mar-18,19/03/2018,0128132,"1,320.25",Revenue,EE - Orange,16486,,
Chorley Borough Council,http://statistics.data.gov.uk/id/local-authority/30UE,Central Support Services,1009,Customer & Digital,Mobile Voice and Data,40086,Communication and Computing,5028,plan charges,19/03/2018,0128066,"2,126.74",Revenue,EE LIMITED,63366,,
Chorley Borough Council,http://statistics.data.gov.uk/id/local-authority/30UE,Central Support Services,1009,Customer & Digital,Mobile Voice and Data,40086,Communication and Computing,5028,new charges outside plan,19/03/2018,0128066,14.12,Revenue,EE LIMITED,63366,,
Chorley Borough Council,http://statistics.data.gov.uk/id/local-authority/30UE,Unapportionable Central OHeads,1009,Business Development & Growth,General Repairs - Reactive,20004,Repairs Maintenance & Alts,5005,Reactive PRD Works WEF 1/4/17,07/03/2018,0126859,"3,650.00",Revenue,Ellesmere Engineering Co Ltd,17520,,
Chorley Borough Council,http://statistics.data.gov.uk/id/local-authority/30UE,Unapportionable Central OHeads,1009,Business Development & Growth,General Repairs - Reactive,20004,Repairs Maintenance & Alts,5005,Reactive works as of Feb 2018,07/03/2018,0127877,"1,809.00",Revenue,Ellesmere Engineering Co Ltd,17520,,
Chorley Borough Council,http://statistics.data.gov.uk/id/local-authority/30UE,Unapportionable Central OHeads,1009,Business Development & Growth,General Repairs - Reactive,20004,Repairs Maintenance & Alts,5005,Reactive works as of Feb 2018,09/03/2018,0127971,350.00,Revenue,Ellesmere Engineering Co Ltd,17520,,
Chorley Borough Council,http://statistics.data.gov.uk/id/local-authority/30UE,Unapportionable Central OHeads,1009,Business Development & Growth,Planned Maintenance,20006,Repairs Maintenance & Alts,5005,Blanket PPM order from July 17,29/03/2018,0128499,262.85,Revenue,Ellesmere Engineering Co Ltd,17520,,
Chorley Borough Council,http://statistics.data.gov.uk/id/local-authority/30UE,Unapportionable Central OHeads,1009,Business Development & Growth,General Repairs - Reactive,20004,Repairs Maintenance & Alts,5005,Reactive works as of Feb 2018,29/03/2018,0128502,375.60,Revenue,Ellesmere Engineering Co Ltd,17520,,
Chorley Borough Council,http://statistics.data.gov.uk/id/local-authority/30UE,Corporate Management,1008,Early Intervention,Casual Salaries,10004,Direct Employee Expenses,5001,Temporary lead licensing officer for 2 days per week on a contract basis from beginning October to end of March,29/03/2018,0128579,"1,837.50",Revenue,Environmental Health On The Move Ltd,77090,,
Chorley Borough Council,http://statistics.data.gov.uk/id/local-authority/30UE,Capital,Capital,Business Development & Growth,Main Contractor,03007,Capital Expenditure,Capital,Primrose gardens Valuation Statements,16/03/2018,0127047,"13,779.34",Capital,Eric Wright Construction Ltd,76464,,
Chorley Borough Council,http://statistics.data.gov.uk/id/local-authority/30UE,Capital,Capital,Business Development & Growth,Main Contractor,03007,Capital Expenditure,Capital,,16/03/2018,0127047,"188,263.67",Capital,Eric Wright Construction Ltd,76464,,
Chorley Borough Council,http://statistics.data.gov.uk/id/local-authority/30UE,Capital,Capital,Business Development & Growth,Main Contractor,03007,Capital Expenditure,Capital,Delivery of the Pre-Construction Services Agreement and subsequent works in relation to the Market Walk Extension ,07/03/2018,0127406,"39,631.95",Capital,Eric Wright Construction Ltd,76464,,
Chorley Borough Council,http://statistics.data.gov.uk/id/local-authority/30UE,Capital,Capital,Business Development & Growth,Main Contractor,03007,Capital Expenditure,Capital,Delivery of the Pre-Construction Services Agreement and subsequent works in relation to the Market Walk Extension,16/03/2018,0128083,"6,184.94",Capital,Eric Wright Construction Ltd,76464,,
Chorley Borough Council,http://statistics.data.gov.uk/id/local-authority/30UE,Capital,Capital,Business Development & Growth,Main Contractor,03007,Capital Expenditure,Capital,Delivery of the Pre-Construction Services Agreemtn and subsequent works in relation to Friday Street,16/03/2018,0128084,"11,909.51",Capital,Eric Wright Construction Ltd,76464,,
Chorley Borough Council,http://statistics.data.gov.uk/id/local-authority/30UE,Capital,Capital,Business Development & Growth,Main Contractor,03007,Capital Expenditure,Capital,Delivery of the Pre-Construction Services Agreement and subsequent works in relation to Oak House,16/03/2018,0128085,"92,087.47",Capital,Eric Wright Construction Ltd,76464,,
Chorley Borough Council,http://statistics.data.gov.uk/id/local-authority/30UE,Capital,Capital,Business Development & Growth,Main Contractor,03007,Capital Expenditure,Capital,Primrose gardens Valuation Statements,16/03/2018,0128111,"187,119.17",Capital,Eric Wright Construction Ltd,76464,,
Chorley Borough Council,http://statistics.data.gov.uk/id/local-authority/30UE,Capital,Capital,Business Development & Growth,Main Contractor,03007,Capital Expenditure,Capital,,16/03/2018,0128111,"13,695.57",Capital,Eric Wright Construction Ltd,76464,,
Chorley Borough Council,http://statistics.data.gov.uk/id/local-authority/30UE,Capital,Capital,Business Development & Growth,Main Contractor,03007,Capital Expenditure,Capital,Primrose gardens Valuation Statements,27/03/2018,0128405,"229,025.53",Capital,Eric Wright Construction Ltd,76464,,
Chorley Borough Council,http://statistics.data.gov.uk/id/local-authority/30UE,Capital,Capital,Business Development & Growth,Main Contractor,03007,Capital Expenditure,Capital,,27/03/2018,0128405,"16,762.76",Capital,Eric Wright Construction Ltd,76464,,
Chorley Borough Council,http://statistics.data.gov.uk/id/local-authority/30UE,Capital,Capital,Business Development & Growth,Surveyors Fees,03021,Capital Expenditure,Capital,Coronation Recreation Ground Performance Duties as quotation dated 8 Feb 2018.  Ref BW.KW/W Submission,14/03/2018,0128080,"1,000.00",Capital,ES Consulting,77148,,
Chorley Borough Council,http://statistics.data.gov.uk/id/local-authority/30UE,Unapportionable Central OHeads,1009,Policy & Governance,Training Course Fees,17010,Indirect Employee Expenses,5002,Fall Arrest Harness training 6 Civic Attendants,07/03/2018,0127848,700.00,Revenue,Eurosafe Solutions Limited,66302,,
Chorley Borough Council,http://statistics.data.gov.uk/id/local-authority/30UE,Service Management & Support,1009,Customer & Digital,Vehicles and Plant Maintenance,30045,Direct Transport Costs,5016,Purchase of 1 x  Portable Mode 2 10A J1772 EVSE / 13A Domestic UK Plug & Carry Case (Product code: T1 EVSE-EV10A ),07/03/2018,0127952,320.00,Revenue,EV Connectors Limited,77226,,
Chorley Borough Council,http://statistics.data.gov.uk/id/local-authority/30UE,Service Management & Support,1009,Customer & Digital,Supplies-Grounds Maintenance,40025,"Equipment, Furniture & Materia",5023,2 x Phormiums � New Zealand Flax (10 litre pots)18.00 12x Pieris Forrest Flame � (5 litre pots) 12.95 12x Euonymus Fortunei,27/03/2018,0128394,773.95,Revenue,Everglades Nurseries Ltd,20202,,
Chorley Borough Council,http://statistics.data.gov.uk/id/local-authority/30UE,Unapportionable Central OHeads,1009,Customer & Digital,Debtor Tracing Service,40216,Services,5027,Citizen View Licence & Cview Connection 1-5,27/03/2018,0128237,"2,595.00",Revenue,Experian Limited,17797,,
Chorley Borough Council,http://statistics.data.gov.uk/id/local-authority/30UE,Service Management & Support,1009,Customer & Digital,Purchase of Plant,40000,"Equipment, Furniture & Materia",5023,Purchase of Flail Head Skid kit as per quotation,07/03/2018,0127887,366.00,Revenue,F R Sharrock Ltd,18091,,
Chorley Borough Council,http://statistics.data.gov.uk/id/local-authority/30UE,Service Management & Support,1009,Customer & Digital,Vehicles and Plant Maintenance,30045,Direct Transport Costs,5016,As Per Quote 18322; A LED warning arrow to be manufactured and fitted to McConnel Flail,09/03/2018,0127963,581.68,Revenue,F R Sharrock Ltd,18091,,
Chorley Borough Council,http://statistics.data.gov.uk/id/local-authority/30UE,Service Management & Support,1009,Customer & Digital,Supplies - Workshop,40246,"Equipment, Furniture & Materia",5023,for various parts as listed in pro-forma invoice 127362; parts for repairing/ servicing Husqvarna pedestrian mowers,29/03/2018,0128442,782.12,Revenue,F R Sharrock Ltd,18091,,
Chorley Borough Council,http://statistics.data.gov.uk/id/local-authority/30UE,Corporate Management,1008,Customer & Digital,Tools & Equipment - Maintenance,40005,"Equipment, Furniture & Materia",5023,Onsite refurbs/fit new lids to communal bins in Buckshaw Village - 6 remaining sites (7 bins),16/03/2018,0128073,287.50,Revenue,Fairport Containers Ltd,17735,,
Chorley Borough Council,http://statistics.data.gov.uk/id/local-authority/30UE,Corporate Management,1008,Policy & Governance,Other Contributions,40145,Grants and Subscriptions,5031,ADDRESS REDACTED,16/03/2018,0128160,970.04,Revenue,NAME REDACTED,74004,,
Chorley Borough Council,http://statistics.data.gov.uk/id/local-authority/30UE,Unapportionable Central OHeads,1009,Policy & Governance,Legal Fees,40171,Miscellaneous Expenses,5034,Invoice No 495598 - Professional Fees from 26/01/18 to 23/02/18 - regarding Shared Services,14/03/2018,0128016,364.00,Revenue,Forbes Solicitors,17527,,
Chorley Borough Council,http://statistics.data.gov.uk/id/local-authority/30UE,Unapportionable Central OHeads,1009,Policy & Governance,Refreshments,40036,Catering,5024,"090001324	Vegware 8oz double walled cup	1 x 500	55.69 QTY 1 box",27/03/2018,0128352,55.69,Revenue,G C Birchall Ltd T/A Birchall Foodservice,69765,,
Chorley Borough Council,http://statistics.data.gov.uk/id/local-authority/30UE,Unapportionable Central OHeads,1009,Policy & Governance,Refreshments,40036,Catering,5024,"020510001	1x2kg Country Range sweet assorted biscuits	6.28/box QTY 6 boxes",27/03/2018,0128352,34.80,Revenue,G C Birchall Ltd T/A Birchall Foodservice,69765,,
Chorley Borough Council,http://statistics.data.gov.uk/id/local-authority/30UE,Unapportionable Central OHeads,1009,Policy & Governance,Refreshments,40036,Catering,5024,"022081011	Sweetex Tablets	6 x 600	9.23 QTY 2 boxes",27/03/2018,0128352,18.46,Revenue,G C Birchall Ltd T/A Birchall Foodservice,69765,,
Chorley Borough Council,http://statistics.data.gov.uk/id/local-authority/30UE,Unapportionable Central OHeads,1009,Policy & Governance,Refreshments,40036,Catering,5024,"024500001	7 UP 500ml x24 20.83 QUANTITY 1 case",27/03/2018,0128352,20.83,Revenue,G C Birchall Ltd T/A Birchall Foodservice,69765,,
Chorley Borough Council,http://statistics.data.gov.uk/id/local-authority/30UE,Unapportionable Central OHeads,1009,Policy & Governance,Refreshments,40036,Catering,5024,"021560031	Starburst 1 x 24 8.72 QUANTITY 2 boxes",27/03/2018,0128352,17.44,Revenue,G C Birchall Ltd T/A Birchall Foodservice,69765,,
Chorley Borough Council,http://statistics.data.gov.uk/id/local-authority/30UE,Unapportionable Central OHeads,1009,Policy & Governance,Refreshments,40036,Catering,5024,"024000034	Walkers Baked Cheese and Onio QUANTITY 2 boxes",27/03/2018,0128352,31.94,Revenue,G C Birchall Ltd T/A Birchall Foodservice,69765,,
Chorley Borough Council,http://statistics.data.gov.uk/id/local-authority/30UE,Unapportionable Central OHeads,1009,Policy & Governance,Refreshments,40036,Catering,5024,"024000152	Walkers Ready Salted crisps 11.89 QUANTITY 1 box",27/03/2018,0128352,13.59,Revenue,G C Birchall Ltd T/A Birchall Foodservice,69765,,
Chorley Borough Council,http://statistics.data.gov.uk/id/local-authority/30UE,Unapportionable Central OHeads,1009,Policy & Governance,Refreshments,40036,Catering,5024,"025570018	Fairtrade Chocolate Sachets 18g	1 X 100	12.62 QTY 2 boxes total 25.24",27/03/2018,0128352,13.18,Revenue,G C Birchall Ltd T/A Birchall Foodservice,69765,,
Chorley Borough Council,http://statistics.data.gov.uk/id/local-authority/30UE,Unapportionable Central OHeads,1009,Policy & Governance,Refreshments,40036,Catering,5024,"021520026	Smarties Hextube 17.93 QTY 1 box",27/03/2018,0128352,19.81,Revenue,G C Birchall Ltd T/A Birchall Foodservice,69765,,
Chorley Borough Council,http://statistics.data.gov.uk/id/local-authority/30UE,Unapportionable Central OHeads,1009,Policy & Governance,Refreshments,40036,Catering,5024,"024500076	Sugar free 7 up 600ml	20.55 QTY 1 case",27/03/2018,0128352,20.55,Revenue,G C Birchall Ltd T/A Birchall Foodservice,69765,,
Chorley Borough Council,http://statistics.data.gov.uk/id/local-authority/30UE,Unapportionable Central OHeads,1009,Policy & Governance,Refreshments,40036,Catering,5024,"024500074	Bottles of Pepsi Max 600ml 20.81 QTY 1 case",27/03/2018,0128352,20.81,Revenue,G C Birchall Ltd T/A Birchall Foodservice,69765,,
Chorley Borough Council,http://statistics.data.gov.uk/id/local-authority/30UE,Business Support,1095,Business Development & Growth,Gas,20014,Energy Costs,5006,ADDRESS REDACTED,23/03/2018,0128294,447.36,Revenue,Gazprom Energy,56502,,
Chorley Borough Council,http://statistics.data.gov.uk/id/local-authority/30UE,Corporate Management,1008,Customer & Digital,Other Contributions,40145,Grants and Subscriptions,5031,ADDRESS REDACTED,29/03/2018,0128414,500.04,Revenue,NAME REDACTED,73740,,
Chorley Borough Council,http://statistics.data.gov.uk/id/local-authority/30UE,Central Support Services,1009,Early Intervention,Impounded Dogs Costs,40207,Miscellaneous Expenses,5034,Kennelling feeds for 2017/18,07/03/2018,0126681,"1,446.67",Revenue,Glencoe Boarding Kennels,16734,,
Chorley Borough Council,http://statistics.data.gov.uk/id/local-authority/30UE,Central Support Services,1009,Early Intervention,Community Develop Initiatives,40185,Miscellaneous Expenses,5034,To purchase 30 x 8 Feet Refurbished Shipping Container With Security Windows and Doors for Men In Sheds Project,21/03/2018,0127985,"2,800.00",Revenue,Global Shipping Containers Limited,77159,,
Chorley Borough Council,http://statistics.data.gov.uk/id/local-authority/30UE,Central Support Services,1009,Early Intervention,Vandalism Repairs,20005,Repairs Maintenance & Alts,5005,Contract for Graffiti removal 2017,29/03/2018,0128247,330.00,Revenue,Graffiti Away,76316,,
Chorley Borough Council,http://statistics.data.gov.uk/id/local-authority/30UE,Corporate Management,1008,Policy & Governance,External Audit,40064,Services,5027,2017/18 Main External Audit Fee,09/03/2018,0128040,"11,314.00",Revenue,Grant Thornton UK LLP,57322,,
Chorley Borough Council,http://statistics.data.gov.uk/id/local-authority/30UE,Central Support Services,1009,Policy & Governance,HM Land Registry Fees,40174,Miscellaneous Expenses,5034,neighbourhoods,16/03/2018,0127983,3.00,Revenue,H M Land Registry,17567,,
Chorley Borough Council,http://statistics.data.gov.uk/id/local-authority/30UE,Housing Strategy,1069,Policy & Governance,HM Land Registry Fees,40174,Miscellaneous Expenses,5034,housing,16/03/2018,0127983,3.00,Revenue,H M Land Registry,17567,,
Chorley Borough Council,http://statistics.data.gov.uk/id/local-authority/30UE,Unapportionable Central OHeads,1009,Policy & Governance,HM Land Registry Fees,40174,Miscellaneous Expenses,5034,legal,16/03/2018,0127983,3.00,Revenue,H M Land Registry,17567,,
Chorley Borough Council,http://statistics.data.gov.uk/id/local-authority/30UE,Unapportionable Central OHeads,1009,Policy & Governance,HM Land Registry Fees,40174,Miscellaneous Expenses,5034,property,16/03/2018,0127983,955.00,Revenue,H M Land Registry,17567,,
Chorley Borough Council,http://statistics.data.gov.uk/id/local-authority/30UE,Unapportionable Central OHeads,1009,Policy & Governance,HM Land Registry Fees,40174,Miscellaneous Expenses,5034,tax,16/03/2018,0127983,51.00,Revenue,H M Land Registry,17567,,
Chorley Borough Council,http://statistics.data.gov.uk/id/local-authority/30UE,Development Control,1091,Policy & Governance,HM Land Registry Fees,40174,Miscellaneous Expenses,5034,planning,16/03/2018,0127983,104.00,Revenue,H M Land Registry,17567,,
Chorley Borough Council,http://statistics.data.gov.uk/id/local-authority/30UE,Central Support Services,1009,Policy & Governance,HM Land Registry Fees,40174,Miscellaneous Expenses,5034,people,16/03/2018,0127983,20.00,Revenue,H M Land Registry,17567,,
Chorley Borough Council,http://statistics.data.gov.uk/id/local-authority/30UE,Service Management & Support,1009,Customer & Digital,Supplies-Grounds Maintenance,40025,"Equipment, Furniture & Materia",5023,F14 McConnell Flail,27/03/2018,0128144,300.00,Revenue,Halse South West Ltd,76890,,
Chorley Borough Council,http://statistics.data.gov.uk/id/local-authority/30UE,Service Management & Support,1009,Customer & Digital,Supplies-Grounds Maintenance,40025,"Equipment, Furniture & Materia",5023,"carriage to; Chorley Council Depot Bengal St Chorley Lancashire PR7 1SA",27/03/2018,0128144,20.00,Revenue,Halse South West Ltd,76890,,
Chorley Borough Council,http://statistics.data.gov.uk/id/local-authority/30UE,Service Management & Support,1009,Customer & Digital,Supplies-Grounds Maintenance,40025,"Equipment, Furniture & Materia",5023,Please supply custom rubber bands for our litter bins at the agreed price of 15.70 per pack of 100.,27/03/2018,0128285,471.00,Revenue,Harrisons Packaging Ltd,17555,,
Chorley Borough Council,http://statistics.data.gov.uk/id/local-authority/30UE,Democratic Represent and  Mgnt,1007,Policy & Governance,Grants To Other Organisations,40127,Grants and Subscriptions,5031,grant,16/03/2018,0128204,250.00,Revenue,NAME REDACTED,18494,,
Chorley Borough Council,http://statistics.data.gov.uk/id/local-authority/30UE,Unapportionable Central OHeads,1009,Policy & Governance,Tools & Equipment - Purchase,40003,"Equipment, Furniture & Materia",5023,"Z-FLAGS DIGITAL 1m x 1.6m Be Aware printed flag. 1 75.00 75.00 Digitally printed flag on to knitted polyester, mirror imaged ",07/03/2018,0127617,410.66,Revenue,HoF Display Solutions,49100,,
Chorley Borough Council,http://statistics.data.gov.uk/id/local-authority/30UE,Business Support,1095,Business Development & Growth,Miscellaneous Expenses,40200,Miscellaneous Expenses,5034,Additional design works - Digital Office Hub Development,29/03/2018,0128481,"3,725.00",Revenue,Howarth Litchfield Partnership,76440,,
Chorley Borough Council,http://statistics.data.gov.uk/id/local-authority/30UE,Capital,Capital,Business Development & Growth,Architects Fees,03022,Capital Expenditure,Capital,"For provision of Architectural and Principal Designer Services for the Digital Office Park, Chorley in accordance with tender dated",29/03/2018,0128482,"3,127.00",Capital,Howarth Litchfield Partnership,76440,,
Chorley Borough Council,http://statistics.data.gov.uk/id/local-authority/30UE,Open Spaces,1038,Business Development & Growth,Professional Fees,40063,Services,5027,Project work for Westway Sports Campus,07/03/2018,0127857,"1,660.00",Revenue,Identity Consult Ltd,76426,,
Chorley Borough Council,http://statistics.data.gov.uk/id/local-authority/30UE,Capital,Capital,Business Development & Growth,Consultants Fees,03025,Capital Expenditure,Capital,For provision of project management/employers agent services in accordance with tender dated 30.9.2016.,27/03/2018,0128396,"2,075.00",Capital,Identity Consult Ltd,76426,,
Chorley Borough Council,http://statistics.data.gov.uk/id/local-authority/30UE,Capital,Capital,Business Development & Growth,Consultants Fees,03025,Capital Expenditure,Capital,For provision of project management/employers agent services in accordance with tender dated 30.9.2016.,27/03/2018,0128403,"2,075.00",Capital,Identity Consult Ltd,76426,,
Chorley Borough Council,http://statistics.data.gov.uk/id/local-authority/30UE,Business Support,1095,Business Development & Growth,Publicity - Advertising,40157,Miscellaneous Expenses,5034,To produce a new set of 5 CGI�s for the Market Walk extension for use in publicity for phase 2 and letting information.,02/03/2018,0127861,"1,437.00",Revenue,Infinite 3D Limited,77220,,
Chorley Borough Council,http://statistics.data.gov.uk/id/local-authority/30UE,Central Support Services,1009,Customer & Digital,Miscellaneous Expenses,40200,Miscellaneous Expenses,5034,"Infrastructure, Back up and DR following recent procurement",21/03/2018,0127726,"342,704.00",Revenue,Insight Direct (UK) LTD,21768,,
Chorley Borough Council,http://statistics.data.gov.uk/id/local-authority/30UE,Central Support Services,1009,Customer & Digital,IT Software - Annual Licences,40101,Communication and Computing,5028,Adobe VIPG Creative Cloud for teams All Apps ALL EU English All OS Monthly 1 User Team Licensing Subscription Renewal,07/03/2018,0127966,"1,497.36",Revenue,Insight Direct (UK) LTD,21768,,
Chorley Borough Council,http://statistics.data.gov.uk/id/local-authority/30UE,Unapportionable Central OHeads,1009,Policy & Governance,HR Approved Training Expenses,17001,Indirect Employee Expenses,5002,Training on 01/03/18 (Project Management Fundamentals/Time Management),21/03/2018,0128289,"1,410.00",Revenue,Instep UK Ltd,65300,,
Chorley Borough Council,http://statistics.data.gov.uk/id/local-authority/30UE,Central Support Services,1009,Early Intervention,Miscellaneous Expenses,40200,Miscellaneous Expenses,5034,Ref NAME REDACTED - ADDRESS REDACTED  To strip out existing bathroom Renew floor boards Refix new suite Patch plaster,27/03/2018,0125214,330.00,Revenue,J Kenyon,76916,,
Chorley Borough Council,http://statistics.data.gov.uk/id/local-authority/30UE,Community Development,1097,Business Development & Growth,Rent/Hire Of Premises,20017,Premises Rents,5007,rent for 35/37 Market st,09/03/2018,0127940,"7,218.75",Revenue,J R Keys,17124,,
Chorley Borough Council,http://statistics.data.gov.uk/id/local-authority/30UE,Business Support,1095,Business Development & Growth,Refuse Collection,20037,Cleaning and Domestic Supplies,5012,"Waste Compactor Rental Services @ 270.0 per month April 17 - March 18",02/03/2018,0127879,270.00,Revenue,J&H Rentals Limited,70699,,
Chorley Borough Council,http://statistics.data.gov.uk/id/local-authority/30UE,Democratic Represent and  Mgnt,1007,Early Intervention,Member Development Programme,17007,Indirect Employee Expenses,5002,Member and Staff Training between Chorley and South Ribble Borough Councils.  Training Session for Licensing with regards ,27/03/2018,0128425,"1,304.80",Revenue,James Button and Co,77064,,
Chorley Borough Council,http://statistics.data.gov.uk/id/local-authority/30UE,Central Support Services,1009,Customer & Digital,Miscellaneous Expenses,40200,Miscellaneous Expenses,5034,"Various materials (fencing, boards, stakes, top soil, MOT) for Neighbourhood Project at Cripplegate Lane pond",07/03/2018,0127899,351.60,Revenue,John H Mayor & Sons Ltd,16635,,
Chorley Borough Council,http://statistics.data.gov.uk/id/local-authority/30UE,Democratic Represent and  Mgnt,1007,Policy & Governance,Burglar Alarms & Security Systems,20075,Fixtures and Fittings,5010,Security review necessary for Museum Accreditation + expenses NAME REDACTED 21.02.18  643.42p plus VAT = 753.42p,29/03/2018,0128580,550.00,Revenue,John Minary at Osprey Heritage Management Ltd.,77218,,
Chorley Borough Council,http://statistics.data.gov.uk/id/local-authority/30UE,Democratic Represent and  Mgnt,1007,Policy & Governance,Burglar Alarms & Security Systems,20075,Fixtures and Fittings,5010,expenses,29/03/2018,0128580,93.42,Revenue,John Minary at Osprey Heritage Management Ltd.,77218,,
Chorley Borough Council,http://statistics.data.gov.uk/id/local-authority/30UE,Economic Development,1096,Business Development & Growth,Miscellaneous Expenses,40200,Miscellaneous Expenses,5034,"For business start-up support February, March, April 2018 5,200",07/03/2018,0127972,"2,000.00",Revenue,NAME REDACTED,77195,,
Chorley Borough Council,http://statistics.data.gov.uk/id/local-authority/30UE,Development Control,1091,Customer & Digital,Statutory Notices,40160,Miscellaneous Expenses,5034,Planning Public Notices to appear in the Chorley Guardian April 2017 to March 2018,09/03/2018,0127992,288.42,Revenue,Johnston Publishing Ltd,20072,,
Chorley Borough Council,http://statistics.data.gov.uk/id/local-authority/30UE,Development Control,1091,Customer & Digital,Statutory Notices,40160,Miscellaneous Expenses,5034,Planning Public Notices to appear in the Chorley Guardian April 2017 to March 2018,16/03/2018,0128157,340.86,Revenue,Johnston Publishing Ltd,20072,,
Chorley Borough Council,http://statistics.data.gov.uk/id/local-authority/30UE,Parking Services,1066,Business Development & Growth,Statutory Notices,40160,Miscellaneous Expenses,5034,Advert Ref Number : NMC2724302 Chorley Guardian 11x3 Public Notices Black 13/03/2018,23/03/2018,0128309,288.42,Revenue,Johnston Publishing Ltd,20072,,
Chorley Borough Council,http://statistics.data.gov.uk/id/local-authority/30UE,Development Control,1091,Customer & Digital,Statutory Notices,40160,Miscellaneous Expenses,5034,Planning Public Notices to appear in the Chorley Guardian April 2017 to March 2018,29/03/2018,0128566,419.52,Revenue,Johnston Publishing Ltd,20072,,
Chorley Borough Council,http://statistics.data.gov.uk/id/local-authority/30UE,Elections,1012,Policy & Governance,Statutory Notices,40160,Miscellaneous Expenses,5034,Notice of Election - Parish - publication in Chorley Guardian and LEP,29/03/2018,0128567,"1,399.95",Revenue,Johnston Publishing Ltd,20072,,
Chorley Borough Council,http://statistics.data.gov.uk/id/local-authority/30UE,Elections,1012,Policy & Governance,Statutory Notices,40160,Miscellaneous Expenses,5034,Notice of Election - Borough publication in Chorley Guardian and LEP,29/03/2018,0128568,"1,679.94",Revenue,Johnston Publishing Ltd,20072,,
Chorley Borough Council,http://statistics.data.gov.uk/id/local-authority/30UE,Capital,Capital,Early Intervention,Grants,03002,Capital Expenditure,Capital,ADDRESS REDACTED,02/03/2018,0127834,"2,932.50",Capital,K Berry Ltd,16421,,
Chorley Borough Council,http://statistics.data.gov.uk/id/local-authority/30UE,Capital,Capital,Early Intervention,Grants,03002,Capital Expenditure,Capital,ADDRESS REDACTED,23/03/2018,0128282,"7,140.01",Capital,K Berry Ltd,16421,,
Chorley Borough Council,http://statistics.data.gov.uk/id/local-authority/30UE,Development Control,1091,Policy & Governance,Legal Fees,40171,Miscellaneous Expenses,5034,Advice of NAME REDACTED in relation to the Camelot planning application - advising in conference detailed comments/advice,09/03/2018,0128041,"1,462.50",Revenue,Kings Chambers Ltd,48008,,
Chorley Borough Council,http://statistics.data.gov.uk/id/local-authority/30UE,Planning Policy,1092,Policy & Governance,Legal Fees,40171,Miscellaneous Expenses,5034,Professional fees of NAME REDACTED in conference and advice by email on 14 Dec 17 in relation to ADDRESS REDACTED,29/03/2018,0128300,"1,687.50",Revenue,Kings Chambers Ltd,48008,,
Chorley Borough Council,http://statistics.data.gov.uk/id/local-authority/30UE,Development Control,1091,Policy & Governance,Legal Fees,40171,Miscellaneous Expenses,5034,Professional Fees for Land at Hut lane,29/03/2018,0128550,650.00,Revenue,Kings Chambers Ltd,48008,,
Chorley Borough Council,http://statistics.data.gov.uk/id/local-authority/30UE,Capital,Capital,Business Development & Growth,Main Contractor,03007,Capital Expenditure,Capital,"Design and Build of Osborne Drive Play Area, Clayton-le-Woods, Chorley as per agreed design drawings and contract documents",23/03/2018,0128302,"1,602.00",Capital,Kompan,61460,,
Chorley Borough Council,http://statistics.data.gov.uk/id/local-authority/30UE,Control Accounts,Control,Policy & Governance,General Balances,00100,Balance Sheet,Balance,deds,16/03/2018,0128193,"1,163.40",Revenue,Labour Councillors Association,17577,,
Chorley Borough Council,http://statistics.data.gov.uk/id/local-authority/30UE,Development Control,1091,Customer & Digital,Tools & Equipment - Purchase,40003,"Equipment, Furniture & Materia",5023,Service Level Agreement 2017 - 2018,29/03/2018,0128239,843.75,Revenue,Lancashire Archaeological Advisory Services,75761,,
Chorley Borough Council,http://statistics.data.gov.uk/id/local-authority/30UE,Precepts and Collection Fund,Precepts,Policy & Governance,LCC Precept,02009,Precepts & Collection Fund,Precept,lcc ctax precept,16/03/2018,0127718,"4,438,819.00",Revenue,Lancashire County Council,18386,,
Chorley Borough Council,http://statistics.data.gov.uk/id/local-authority/30UE,Collection Fund Revenue Accoun,,Policy & Governance,NNDR County Share,02036,Precepts & Collection Fund,Precept,lcc bus rates,16/03/2018,0127718,"212,477.00",Revenue,Lancashire County Council,18386,,
Chorley Borough Council,http://statistics.data.gov.uk/id/local-authority/30UE,Capital,Capital,Early Intervention,Grants,03002,Capital Expenditure,Capital,ADDRESS REDACTED,02/03/2018,0127878,"2,629.84",Capital,Lancashire County Council,17758,,
Chorley Borough Council,http://statistics.data.gov.uk/id/local-authority/30UE,Unapportionable Central OHeads,1009,Policy & Governance,Pensions Increase Act Payments,18005,Indirect Employee Expenses,5002,Compensatory Added Years Pensions recharge December 2017,16/03/2018,0127934,"17,512.77",Revenue,Lancashire County Council,18386,,
Chorley Borough Council,http://statistics.data.gov.uk/id/local-authority/30UE,Unapportionable Central OHeads,1009,Policy & Governance,Pensions Increase Act Payments,18005,Indirect Employee Expenses,5002,Compensatory Added Years pensions recharge January 2018,16/03/2018,0127935,"17,409.15",Revenue,Lancashire County Council,18386,,
Chorley Borough Council,http://statistics.data.gov.uk/id/local-authority/30UE,Capital,Capital,Early Intervention,Grants,03002,Capital Expenditure,Capital,ADDRESS REDACTED,09/03/2018,0128029,"2,862.00",Capital,Lancashire County Council,17758,,
Chorley Borough Council,http://statistics.data.gov.uk/id/local-authority/30UE,Capital,Capital,Early Intervention,Grants,03002,Capital Expenditure,Capital,ADDRESS REDACTED,09/03/2018,0128030,"7,272.00",Capital,Lancashire County Council,17758,,
Chorley Borough Council,http://statistics.data.gov.uk/id/local-authority/30UE,Capital,Capital,Early Intervention,Grants,03002,Capital Expenditure,Capital,ADDRESS REDACTED,09/03/2018,0128031,"6,619.00",Capital,Lancashire County Council,17758,,
Chorley Borough Council,http://statistics.data.gov.uk/id/local-authority/30UE,Capital,Capital,Early Intervention,Grants,03002,Capital Expenditure,Capital,ADDRESS REDACTED,09/03/2018,0128032,"1,541.00",Capital,Lancashire County Council,17758,,
Chorley Borough Council,http://statistics.data.gov.uk/id/local-authority/30UE,Precepts and Collection Fund,Precepts,Policy & Governance,LCC Precept,02009,Precepts & Collection Fund,Precept,ctax,27/03/2018,0128265,"4,438,819.00",Revenue,Lancashire County Council,18386,,
Chorley Borough Council,http://statistics.data.gov.uk/id/local-authority/30UE,Collection Fund Revenue Accoun,,Policy & Governance,NNDR County Share,02036,Precepts & Collection Fund,Precept,bus rates,27/03/2018,0128265,"212,477.00",Revenue,Lancashire County Council,18386,,
Chorley Borough Council,http://statistics.data.gov.uk/id/local-authority/30UE,Economic Development,1096,Business Development & Growth,Miscellaneous Expenses,40200,Miscellaneous Expenses,5034,Advertising /Promotional signs on Hartwood round-a-bout for Chorley Markets,23/03/2018,0128353,287.22,Revenue,Lancashire County Council,17758,,
Chorley Borough Council,http://statistics.data.gov.uk/id/local-authority/30UE,Capital,Capital,Early Intervention,Grants,03002,Capital Expenditure,Capital,ADDRESS REDACTED,27/03/2018,0128381,"5,503.00",Capital,Lancashire County Council,17758,,
Chorley Borough Council,http://statistics.data.gov.uk/id/local-authority/30UE,Capital,Capital,Early Intervention,Grants,03002,Capital Expenditure,Capital,ADDRESS REDACTED,27/03/2018,0128382,"1,771.27",Capital,Lancashire County Council,17758,,
Chorley Borough Council,http://statistics.data.gov.uk/id/local-authority/30UE,Capital,Capital,Early Intervention,Grants,03002,Capital Expenditure,Capital,ADDRESS REDACTED,27/03/2018,0128383,"5,679.00",Capital,Lancashire County Council,17758,,
Chorley Borough Council,http://statistics.data.gov.uk/id/local-authority/30UE,Capital,Capital,Early Intervention,Grants,03002,Capital Expenditure,Capital,ADDRESS REDACTED,27/03/2018,0128384,"1,561.75",Capital,Lancashire County Council,17758,,
Chorley Borough Council,http://statistics.data.gov.uk/id/local-authority/30UE,Corporate Management,1008,Policy & Governance,Other Contributions,40145,Grants and Subscriptions,5031,library funding,29/03/2018,0128412,"121,859.00",Revenue,Lancashire County Council,17758,,
Chorley Borough Council,http://statistics.data.gov.uk/id/local-authority/30UE,Economic Development,1096,Business Development & Growth,Exhibitions & Special Events,40158,Miscellaneous Expenses,5034,Installation of circa 850m of summertime bunting around Chorley Town Centre as per maps supplied to NAME REDACTED.,29/03/2018,0128525,"1,500.00",Revenue,Lancashire County Council,20027,,
Chorley Borough Council,http://statistics.data.gov.uk/id/local-authority/30UE,Other Short Term Creditors,,Policy & Governance,General Balances,00100,Balance Sheet,Balance,ees,29/03/2018,0127585,"40,050.72",Revenue,Lancashire Pensions Services,16696,,
Chorley Borough Council,http://statistics.data.gov.uk/id/local-authority/30UE,Other Short Term Creditors,,Policy & Governance,General Balances,00100,Balance Sheet,Balance,ers,29/03/2018,0127585,"88,600.16",Revenue,Lancashire Pensions Services,16696,,
Chorley Borough Council,http://statistics.data.gov.uk/id/local-authority/30UE,Unapportionable Central OHeads,1009,Policy & Governance,Pensions Deficit Recovery Contributions,12003,Direct Employee Expenses,5001,dificit,29/03/2018,0127585,"65,878.33",Revenue,Lancashire Pensions Services,16696,,
Chorley Borough Council,http://statistics.data.gov.uk/id/local-authority/30UE,Service Management & Support,1009,Policy & Governance,Pensions Increase Act Payments,18005,Indirect Employee Expenses,5002,pension strain,29/03/2018,0128194,"95,099.78",Revenue,Lancashire Pensions Services,16696,,
Chorley Borough Council,http://statistics.data.gov.uk/id/local-authority/30UE,Other Short Term Creditors,,Policy & Governance,General Balances,00100,Balance Sheet,Balance,ees,29/03/2018,0128195,"41,378.74",Revenue,Lancashire Pensions Services,16696,,
Chorley Borough Council,http://statistics.data.gov.uk/id/local-authority/30UE,Other Short Term Creditors,,Policy & Governance,General Balances,00100,Balance Sheet,Balance,ers,29/03/2018,0128195,"91,909.28",Revenue,Lancashire Pensions Services,16696,,
Chorley Borough Council,http://statistics.data.gov.uk/id/local-authority/30UE,Unapportionable Central OHeads,1009,Policy & Governance,Pensions Deficit Recovery Contributions,12003,Direct Employee Expenses,5001,dificit,29/03/2018,0128195,"65,878.33",Revenue,Lancashire Pensions Services,16696,,
Chorley Borough Council,http://statistics.data.gov.uk/id/local-authority/30UE,Precepts and Collection Fund,Precepts,Policy & Governance,LCFA Precept,02011,Precepts & Collection Fund,Precept,ctax precept,16/03/2018,0127717,"238,081.00",Revenue,Lancs Combined Fire Authority,17768,,
Chorley Borough Council,http://statistics.data.gov.uk/id/local-authority/30UE,Collection Fund Revenue Accoun,,Policy & Governance,NNDR Fire Share,02037,Precepts & Collection Fund,Precept,bus rates,16/03/2018,0127717,"23,608.00",Revenue,Lancs Combined Fire Authority,17768,,
Chorley Borough Council,http://statistics.data.gov.uk/id/local-authority/30UE,Precepts and Collection Fund,Precepts,Policy & Governance,LCFA Precept,02011,Precepts & Collection Fund,Precept,ctax,27/03/2018,0128266,"238,081.00",Revenue,Lancs Combined Fire Authority,17768,,
Chorley Borough Council,http://statistics.data.gov.uk/id/local-authority/30UE,Collection Fund Revenue Accoun,,Policy & Governance,NNDR Fire Share,02037,Precepts & Collection Fund,Precept,bus rates,27/03/2018,0128266,"23,608.00",Revenue,Lancs Combined Fire Authority,17768,,
Chorley Borough Council,http://statistics.data.gov.uk/id/local-authority/30UE,Corporate Management,1008,Policy & Governance,Translation Services,40238,Services,5027,"Translation Services for Equality Forums planned for 13.07.17, 19.10.17 and 08.02.18",09/03/2018,0127760,265.00,Revenue,NAME REDACTED,76140,,
Chorley Borough Council,http://statistics.data.gov.uk/id/local-authority/30UE,Central Support Services,1009,Policy & Governance,Car Leasing Payment,14100,Direct Employee Expenses,5001,NAME REDACTED,19/03/2018,0128235,"2,759.73",Revenue,LeasePlan UK Ltd T/A Automotive Leasing,65197,,
Chorley Borough Council,http://statistics.data.gov.uk/id/local-authority/30UE,Central Support Services,1009,Policy & Governance,Car Leasing Payment,14100,Direct Employee Expenses,5001,,19/03/2018,0128235,239.97,Revenue,LeasePlan UK Ltd T/A Automotive Leasing,65197,,
Chorley Borough Council,http://statistics.data.gov.uk/id/local-authority/30UE,Control Accounts,Control,Policy & Governance,Manual Control Account,00001,Balance Sheet,Balance,,19/03/2018,0128235,-239.97,Revenue,LeasePlan UK Ltd T/A Automotive Leasing,65197,,
Chorley Borough Council,http://statistics.data.gov.uk/id/local-authority/30UE,Building Control,1090,Policy & Governance,Car Leasing Payment,14100,Direct Employee Expenses,5001,NAME REDACTED,16/03/2018,0128198,"1,487.30",Revenue,Lex Autolease Ltd,70682,,
Chorley Borough Council,http://statistics.data.gov.uk/id/local-authority/30UE,Corporate Management,1008,Policy & Governance,Treasury Management Service,40065,Services,5027,Treasury Management Services for the period 01/10/2017 to 31/03/2018,14/03/2018,0128105,"7,275.00",Revenue,Link Treasury Services Limited,16428,,
Chorley Borough Council,http://statistics.data.gov.uk/id/local-authority/30UE,Unapportionable Central OHeads,1009,Chief Executive,Stationery,40050,"Printing, Stationery & General",5026,Magnetic Tape 19mm x 3m,27/03/2018,0128401,40.18,Revenue,Lyreco UK Ltd,17623,,
Chorley Borough Council,http://statistics.data.gov.uk/id/local-authority/30UE,Unapportionable Central OHeads,1009,Chief Executive,Stationery,40050,"Printing, Stationery & General",5026,Elba Spring Pocket Files - Green,27/03/2018,0128401,28.70,Revenue,Lyreco UK Ltd,17623,,
Chorley Borough Council,http://statistics.data.gov.uk/id/local-authority/30UE,Unapportionable Central OHeads,1009,Chief Executive,Stationery,40050,"Printing, Stationery & General",5026,Lyreco Manilla 16 X 12Inch Self Seal Plain Envelopes 90Gsm - Box Of 250,27/03/2018,0128401,30.97,Revenue,Lyreco UK Ltd,17623,,
Chorley Borough Council,http://statistics.data.gov.uk/id/local-authority/30UE,Unapportionable Central OHeads,1009,Chief Executive,Stationery,40050,"Printing, Stationery & General",5026,LYRECO FINELINER BLACK PENS 0.3MM LINE WIDTH - BOX OF 12,27/03/2018,0128401,1.20,Revenue,Lyreco UK Ltd,17623,,
Chorley Borough Council,http://statistics.data.gov.uk/id/local-authority/30UE,Unapportionable Central OHeads,1009,Chief Executive,Stationery,40050,"Printing, Stationery & General",5026,Lyreco Plain Yellow Sticky Notes 50 X 40Mm - Pack Of 12 Pads,27/03/2018,0128401,0.38,Revenue,Lyreco UK Ltd,17623,,
Chorley Borough Council,http://statistics.data.gov.uk/id/local-authority/30UE,Unapportionable Central OHeads,1009,Chief Executive,Stationery,40050,"Printing, Stationery & General",5026,Lyreco Plain Yellow Sticky Notes 75 X 75Mm - Pack Of 12 Pads,27/03/2018,0128401,1.32,Revenue,Lyreco UK Ltd,17623,,
Chorley Borough Council,http://statistics.data.gov.uk/id/local-authority/30UE,Unapportionable Central OHeads,1009,Chief Executive,Stationery,40050,"Printing, Stationery & General",5026,Lyreco Plain Yellow Sticky Notes 125 X 75Mm - Pack Of 12 Pads,27/03/2018,0128401,1.32,Revenue,Lyreco UK Ltd,17623,,
Chorley Borough Council,http://statistics.data.gov.uk/id/local-authority/30UE,Unapportionable Central OHeads,1009,Chief Executive,Stationery,40050,"Printing, Stationery & General",5026,Lyreco Metal Half-Strip Stapler,27/03/2018,0128401,4.53,Revenue,Lyreco UK Ltd,17623,,
Chorley Borough Council,http://statistics.data.gov.uk/id/local-authority/30UE,Unapportionable Central OHeads,1009,Chief Executive,Stationery,40050,"Printing, Stationery & General",5026,HP Black Ink Cartridge 953,27/03/2018,0128401,26.69,Revenue,Lyreco UK Ltd,17623,,
Chorley Borough Council,http://statistics.data.gov.uk/id/local-authority/30UE,Unapportionable Central OHeads,1009,Chief Executive,Stationery,40050,"Printing, Stationery & General",5026,HP Blue Ink Cartridge 953,27/03/2018,0128401,19.56,Revenue,Lyreco UK Ltd,17623,,
Chorley Borough Council,http://statistics.data.gov.uk/id/local-authority/30UE,Unapportionable Central OHeads,1009,Chief Executive,Stationery,40050,"Printing, Stationery & General",5026,HP Magenta Ink Cartridge 953,27/03/2018,0128401,19.56,Revenue,Lyreco UK Ltd,17623,,
Chorley Borough Council,http://statistics.data.gov.uk/id/local-authority/30UE,Unapportionable Central OHeads,1009,Chief Executive,Stationery,40050,"Printing, Stationery & General",5026,LYRECO A4 GLOSS LAMINATING POUCHES 150 M - Box 100,27/03/2018,0128401,3.20,Revenue,Lyreco UK Ltd,17623,,
Chorley Borough Council,http://statistics.data.gov.uk/id/local-authority/30UE,Unapportionable Central OHeads,1009,Chief Executive,Stationery,40050,"Printing, Stationery & General",5026,HP Yellow Ink Cartridge 953,27/03/2018,0128401,19.56,Revenue,Lyreco UK Ltd,17623,,
Chorley Borough Council,http://statistics.data.gov.uk/id/local-authority/30UE,Unapportionable Central OHeads,1009,Chief Executive,Stationery,40050,"Printing, Stationery & General",5026,Lyreco Crepe Masking Tape - 25Mm X 50M Roll,27/03/2018,0128401,7.50,Revenue,Lyreco UK Ltd,17623,,
Chorley Borough Council,http://statistics.data.gov.uk/id/local-authority/30UE,Unapportionable Central OHeads,1009,Chief Executive,Stationery,40050,"Printing, Stationery & General",5026,Lyreco Screen Wipes - 100 Wipes,27/03/2018,0128401,3.77,Revenue,Lyreco UK Ltd,17623,,
Chorley Borough Council,http://statistics.data.gov.uk/id/local-authority/30UE,Unapportionable Central OHeads,1009,Chief Executive,Stationery,40050,"Printing, Stationery & General",5026,Lyreco Plain Yellow Sticky Notes 125 X 75Mm - Pack Of 12 Pads,27/03/2018,0128401,1.32,Revenue,Lyreco UK Ltd,17623,,
Chorley Borough Council,http://statistics.data.gov.uk/id/local-authority/30UE,Unapportionable Central OHeads,1009,Chief Executive,Stationery,40050,"Printing, Stationery & General",5026,UHU 43511 ECONOMY WHITE TACK,27/03/2018,0128401,3.05,Revenue,Lyreco UK Ltd,17623,,
Chorley Borough Council,http://statistics.data.gov.uk/id/local-authority/30UE,Unapportionable Central OHeads,1009,Chief Executive,Stationery,40050,"Printing, Stationery & General",5026,Lyreco  Hard Back Twin Wire Notebook A5 - Pack Of 5,27/03/2018,0128401,14.20,Revenue,Lyreco UK Ltd,17623,,
Chorley Borough Council,http://statistics.data.gov.uk/id/local-authority/30UE,Unapportionable Central OHeads,1009,Chief Executive,Stationery,40050,"Printing, Stationery & General",5026,Lyreco Plain Yellow Sticky Notes 75 X 75Mm - Pack Of 12 Pads,27/03/2018,0128401,2.64,Revenue,Lyreco UK Ltd,17623,,
Chorley Borough Council,http://statistics.data.gov.uk/id/local-authority/30UE,Unapportionable Central OHeads,1009,Chief Executive,Stationery,40050,"Printing, Stationery & General",5026,"3.110.545 LYRECO HARD BACK TWIN WIRE NOTEBK A4 	 - PACK OF 5",27/03/2018,0128401,9.20,Revenue,Lyreco UK Ltd,17623,,
Chorley Borough Council,http://statistics.data.gov.uk/id/local-authority/30UE,Unapportionable Central OHeads,1009,Chief Executive,Stationery,40050,"Printing, Stationery & General",5026,LYRECO BUDGET WHITE A4 MEMO PADS (RULED) - PACK OF 10 (10 X 80 SHEETS),27/03/2018,0128401,3.90,Revenue,Lyreco UK Ltd,17623,,
Chorley Borough Council,http://statistics.data.gov.uk/id/local-authority/30UE,Unapportionable Central OHeads,1009,Chief Executive,Stationery,40050,"Printing, Stationery & General",5026,Lyreco Assorted Bright colour A4 10 part dividers 240gsm,27/03/2018,0128401,1.60,Revenue,Lyreco UK Ltd,17623,,
Chorley Borough Council,http://statistics.data.gov.uk/id/local-authority/30UE,Unapportionable Central OHeads,1009,Chief Executive,Stationery,40050,"Printing, Stationery & General",5026,LYRECO HEAVY DUTY 2 HOLE PAPER PUNCH BLACK - 70 SHEET CAPACITY,27/03/2018,0128401,5.47,Revenue,Lyreco UK Ltd,17623,,
Chorley Borough Council,http://statistics.data.gov.uk/id/local-authority/30UE,Unapportionable Central OHeads,1009,Chief Executive,Stationery,40050,"Printing, Stationery & General",5026,Lyreco Plain Yellow Sticky Notes 125 X 75Mm - Pack Of 12 Pads,27/03/2018,0128401,6.60,Revenue,Lyreco UK Ltd,17623,,
Chorley Borough Council,http://statistics.data.gov.uk/id/local-authority/30UE,Unapportionable Central OHeads,1009,Chief Executive,Stationery,40050,"Printing, Stationery & General",5026,Lyreco Plain Yellow Sticky Notes 50 X 40Mm - Pack Of 12 Pads,27/03/2018,0128401,2.28,Revenue,Lyreco UK Ltd,17623,,
Chorley Borough Council,http://statistics.data.gov.uk/id/local-authority/30UE,Unapportionable Central OHeads,1009,Chief Executive,Stationery,40050,"Printing, Stationery & General",5026,"3.110.545 LYRECO HARD BACK TWIN WIRE NOTEBK A4 	 - PACK OF 5",27/03/2018,0128401,9.20,Revenue,Lyreco UK Ltd,17623,,
Chorley Borough Council,http://statistics.data.gov.uk/id/local-authority/30UE,Unapportionable Central OHeads,1009,Chief Executive,Stationery,40050,"Printing, Stationery & General",5026,LYRECO RETRACTABLE GEL INK BLACK PENS 0.5MM LINE WIDTH - BOX OF 12,27/03/2018,0128401,5.28,Revenue,Lyreco UK Ltd,17623,,
Chorley Borough Council,http://statistics.data.gov.uk/id/local-authority/30UE,Unapportionable Central OHeads,1009,Chief Executive,Stationery,40050,"Printing, Stationery & General",5026,Micron Stick Ball Point,27/03/2018,0128401,1.50,Revenue,Lyreco UK Ltd,17623,,
Chorley Borough Council,http://statistics.data.gov.uk/id/local-authority/30UE,Unapportionable Central OHeads,1009,Chief Executive,Stationery,40050,"Printing, Stationery & General",5026,Lyreco White C4 Self Seal Plain Envelopes 100Gsm - Box Of 250,27/03/2018,0128401,5.90,Revenue,Lyreco UK Ltd,17623,,
Chorley Borough Council,http://statistics.data.gov.uk/id/local-authority/30UE,Unapportionable Central OHeads,1009,Chief Executive,Stationery,40050,"Printing, Stationery & General",5026,Lyreco Sellotape,27/03/2018,0128401,6.00,Revenue,Lyreco UK Ltd,17623,,
Chorley Borough Council,http://statistics.data.gov.uk/id/local-authority/30UE,Unapportionable Central OHeads,1009,Chief Executive,Stationery,40050,"Printing, Stationery & General",5026,Pentel Bullet tip black permanent markers,27/03/2018,0128401,16.80,Revenue,Lyreco UK Ltd,17623,,
Chorley Borough Council,http://statistics.data.gov.uk/id/local-authority/30UE,Unapportionable Central OHeads,1009,Chief Executive,Stationery,40050,"Printing, Stationery & General",5026,A5 Desktop Display,27/03/2018,0128401,30.84,Revenue,Lyreco UK Ltd,17623,,
Chorley Borough Council,http://statistics.data.gov.uk/id/local-authority/30UE,Service Management & Support,1009,Customer & Digital,Grounds Maintenance Contractor,20043,Grounds Maintenance Costs,5013,For various tree works carried out 01/02/18 - 28/02/18 as listed in invoice 29,19/03/2018,0128232,"4,060.00",Revenue,M J Walker,62044,,
Chorley Borough Council,http://statistics.data.gov.uk/id/local-authority/30UE,Service Management & Support,1009,Customer & Digital,Grounds Maintenance Contractor,20043,Grounds Maintenance Costs,5013,for various tree works carried out march 2018 as listed in invoice 30,29/03/2018,0128440,"4,510.00",Revenue,M J Walker,62044,,
Chorley Borough Council,http://statistics.data.gov.uk/id/local-authority/30UE,Capital,Capital,Early Intervention,Grants,03002,Capital Expenditure,Capital,ADDRESS REDACTED,23/03/2018,0128281,"2,952.50",Capital,M.J Park Building Contractors,20367,,
Chorley Borough Council,http://statistics.data.gov.uk/id/local-authority/30UE,Capital,Capital,Early Intervention,Grants,03002,Capital Expenditure,Capital,ADDRESS REDACTED,27/03/2018,0128410,"3,332.00",Capital,M.J Park Building Contractors,20367,,
Chorley Borough Council,http://statistics.data.gov.uk/id/local-authority/30UE,Capital,Capital,Early Intervention,Grants,03002,Capital Expenditure,Capital,17/00166/CAG NAME REDACTED ADDRESS REDACTED,29/03/2018,0128510,"3,310.00",Capital,M.J Park Building Contractors,20367,,
Chorley Borough Council,http://statistics.data.gov.uk/id/local-authority/30UE,Unapportionable Central OHeads,1009,Policy & Governance,Miscellaneous Expenses,40200,Miscellaneous Expenses,5034,2017/18 partnership agreement subvention,23/03/2018,0128306,"5,250.00",Revenue,Marketing Lancashire,65208,,
Chorley Borough Council,http://statistics.data.gov.uk/id/local-authority/30UE,Central Support Services,1009,Policy & Governance,Agency Staff,13000,Direct Employee Expenses,5001,AGENCY FEES,02/03/2018,0127784,784.80,Revenue,Matrix SCM Ltd,22128,,
Chorley Borough Council,http://statistics.data.gov.uk/id/local-authority/30UE,Central Support Services,1009,Policy & Governance,Agency Staff,13000,Direct Employee Expenses,5001,AGENCY FEES,07/03/2018,0127889,784.80,Revenue,Matrix SCM Ltd,22128,,
Chorley Borough Council,http://statistics.data.gov.uk/id/local-authority/30UE,Unapportionable Central OHeads,1009,Policy & Governance,Agency Staff,13000,Direct Employee Expenses,5001,AGENCY FEES,07/03/2018,0127889,422.46,Revenue,Matrix SCM Ltd,22128,,
Chorley Borough Council,http://statistics.data.gov.uk/id/local-authority/30UE,Central Support Services,1009,Policy & Governance,Agency Staff,13000,Direct Employee Expenses,5001,AGENCY FEES,09/03/2018,0128012,784.80,Revenue,Matrix SCM Ltd,22128,,
Chorley Borough Council,http://statistics.data.gov.uk/id/local-authority/30UE,Unapportionable Central OHeads,1009,Policy & Governance,Agency Staff,13000,Direct Employee Expenses,5001,AGENCY FEES,09/03/2018,0128012,437.54,Revenue,Matrix SCM Ltd,22128,,
Chorley Borough Council,http://statistics.data.gov.uk/id/local-authority/30UE,Central Support Services,1009,Policy & Governance,Agency Staff,13000,Direct Employee Expenses,5001,AGENCY FEES,19/03/2018,0128183,806.60,Revenue,Matrix SCM Ltd,22128,,
Chorley Borough Council,http://statistics.data.gov.uk/id/local-authority/30UE,Unapportionable Central OHeads,1009,Policy & Governance,Agency Staff,13000,Direct Employee Expenses,5001,AGENCY FEES,19/03/2018,0128183,298.74,Revenue,Matrix SCM Ltd,22128,,
Chorley Borough Council,http://statistics.data.gov.uk/id/local-authority/30UE,Central Support Services,1009,Policy & Governance,Agency Staff,13000,Direct Employee Expenses,5001,AGENCY FEES,27/03/2018,0128409,784.80,Revenue,Matrix SCM Ltd,22128,,
Chorley Borough Council,http://statistics.data.gov.uk/id/local-authority/30UE,Unapportionable Central OHeads,1009,Policy & Governance,Agency Staff,13000,Direct Employee Expenses,5001,AGENCY FEES,27/03/2018,0128409,425.48,Revenue,Matrix SCM Ltd,22128,,
Chorley Borough Council,http://statistics.data.gov.uk/id/local-authority/30UE,Central Support Services,1009,Policy & Governance,Agency Staff,13000,Direct Employee Expenses,5001,AGENCY FEES,27/03/2018,0128409,769.68,Revenue,Matrix SCM Ltd,22128,,
Chorley Borough Council,http://statistics.data.gov.uk/id/local-authority/30UE,Central Support Services,1009,Policy & Governance,Agency Staff,13000,Direct Employee Expenses,5001,AGENCY FEES,29/03/2018,0128564,784.80,Revenue,Matrix SCM Ltd,22128,,
Chorley Borough Council,http://statistics.data.gov.uk/id/local-authority/30UE,Central Support Services,1009,Policy & Governance,Agency Staff,13000,Direct Employee Expenses,5001,AGENCY FEES,29/03/2018,0128564,769.68,Revenue,Matrix SCM Ltd,22128,,
Chorley Borough Council,http://statistics.data.gov.uk/id/local-authority/30UE,Elections,1012,Policy & Governance,Rent/Hire Of Premises,20017,Premises Rents,5007,Hire of room for polling station 3 May 2018,29/03/2018,0128539,360.00,Revenue,Mawdesley Village Hall,18423,,
Chorley Borough Council,http://statistics.data.gov.uk/id/local-authority/30UE,Service Management & Support,1009,Customer & Digital,Supplies-Grounds Maintenance,40025,"Equipment, Furniture & Materia",5023,10 ton of Mushroom Compost,29/03/2018,0128461,299.25,Revenue,Mc & Ma Stewart (Haulage Ltd),16627,,
Chorley Borough Council,http://statistics.data.gov.uk/id/local-authority/30UE,Capital,Capital,Customer & Digital,Equipment,03014,Capital Expenditure,Capital,240 l plastic wheeled bin.  Colour ; Grey RAL 7016 With Chorley logo,21/03/2018,0128023,"8,940.00",Capital,MGB Plastics Ltd,18624,,
Chorley Borough Council,http://statistics.data.gov.uk/id/local-authority/30UE,Capital,Capital,Customer & Digital,Equipment,03014,Capital Expenditure,Capital,240 l plastic wheeled bin.  Colour ; Grey RAL 7016 With Chorley logo,21/03/2018,0128024,"8,940.00",Capital,MGB Plastics Ltd,18624,,
Chorley Borough Council,http://statistics.data.gov.uk/id/local-authority/30UE,Capital,Capital,Customer & Digital,Equipment,03014,Capital Expenditure,Capital,240 litre wheeled bin. Colour : Brown with Chorley logo,21/03/2018,0128025,"8,835.00",Capital,MGB Plastics Ltd,18624,,
Chorley Borough Council,http://statistics.data.gov.uk/id/local-authority/30UE,Capital,Capital,Customer & Digital,Equipment,03014,Capital Expenditure,Capital,240 litre wheeled bin. Colour : Green with Chorley logo,27/03/2018,0128351,"9,300.00",Capital,MGB Plastics Ltd,18624,,
Chorley Borough Council,http://statistics.data.gov.uk/id/local-authority/30UE,General Government Grants,,Policy & Governance,Revenue Support Grant,69000,Income not in NCOS,,Revenue Support Grant,29/03/2018,0128505,"-56,596.00",Revenue,Ministry of Housing Communities & Local Government,16280,,
Chorley Borough Council,http://statistics.data.gov.uk/id/local-authority/30UE,Collection Fund Revenue Accoun,,Policy & Governance,NNDR Central Share,02034,Precepts & Collection Fund,Precept,Central Share BR,29/03/2018,0128505,"992,890.00",Revenue,Ministry of Housing Communities & Local Government,16280,,
Chorley Borough Council,http://statistics.data.gov.uk/id/local-authority/30UE,Collection Fund Revenue Accoun,,Policy & Governance,NNDR Central Share,02034,Precepts & Collection Fund,Precept,Deficit Collection Fund,29/03/2018,0128505,"-48,547.00",Revenue,Ministry of Housing Communities & Local Government,16280,,
Chorley Borough Council,http://statistics.data.gov.uk/id/local-authority/30UE,Collection Fund Revenue Accoun,,Policy & Governance,Transitional Protection,02033,Precepts & Collection Fund,Precept,Transitional Relief,29/03/2018,0128505,"186,289.00",Revenue,Ministry of Housing Communities & Local Government,16280,,
Chorley Borough Council,http://statistics.data.gov.uk/id/local-authority/30UE,General Government Grants,,Policy & Governance,Revenue Support Grant,69000,Income not in NCOS,,Revenue Support Grant,29/03/2018,0128507,"-56,595.00",Revenue,Ministry of Housing Communities & Local Government,16280,,
Chorley Borough Council,http://statistics.data.gov.uk/id/local-authority/30UE,Collection Fund Revenue Accoun,,Policy & Governance,NNDR Central Share,02034,Precepts & Collection Fund,Precept,Central Share BR,29/03/2018,0128507,"992,891.00",Revenue,Ministry of Housing Communities & Local Government,16280,,
Chorley Borough Council,http://statistics.data.gov.uk/id/local-authority/30UE,Collection Fund Revenue Accoun,,Policy & Governance,NNDR Central Share,02034,Precepts & Collection Fund,Precept,Deficit Collection Fund,29/03/2018,0128507,"-48,547.00",Revenue,Ministry of Housing Communities & Local Government,16280,,
Chorley Borough Council,http://statistics.data.gov.uk/id/local-authority/30UE,Collection Fund Revenue Accoun,,Policy & Governance,Transitional Protection,02033,Precepts & Collection Fund,Precept,Transitional Relief,29/03/2018,0128507,"186,289.00",Revenue,Ministry of Housing Communities & Local Government,16280,,
Chorley Borough Council,http://statistics.data.gov.uk/id/local-authority/30UE,Private Sector HSG Renewal,1073,Early Intervention,External Contractor,40198,Miscellaneous Expenses,5034,24493,16/03/2018,0128177,125.00,Revenue,Mobility Care Services,70841,,
Chorley Borough Council,http://statistics.data.gov.uk/id/local-authority/30UE,Private Sector HSG Renewal,1073,Early Intervention,External Contractor,40198,Miscellaneous Expenses,5034,24500,16/03/2018,0128177,84.00,Revenue,Mobility Care Services,70841,,
Chorley Borough Council,http://statistics.data.gov.uk/id/local-authority/30UE,Private Sector HSG Renewal,1073,Early Intervention,External Contractor,40198,Miscellaneous Expenses,5034,24501,16/03/2018,0128177,125.00,Revenue,Mobility Care Services,70841,,
Chorley Borough Council,http://statistics.data.gov.uk/id/local-authority/30UE,Private Sector HSG Renewal,1073,Early Intervention,External Contractor,40198,Miscellaneous Expenses,5034,24502,16/03/2018,0128177,84.00,Revenue,Mobility Care Services,70841,,
Chorley Borough Council,http://statistics.data.gov.uk/id/local-authority/30UE,Private Sector HSG Renewal,1073,Early Intervention,External Contractor,40198,Miscellaneous Expenses,5034,24503,16/03/2018,0128177,108.00,Revenue,Mobility Care Services,70841,,
Chorley Borough Council,http://statistics.data.gov.uk/id/local-authority/30UE,Private Sector HSG Renewal,1073,Early Intervention,External Contractor,40198,Miscellaneous Expenses,5034,24504,16/03/2018,0128177,108.00,Revenue,Mobility Care Services,70841,,
Chorley Borough Council,http://statistics.data.gov.uk/id/local-authority/30UE,Private Sector HSG Renewal,1073,Early Intervention,External Contractor,40198,Miscellaneous Expenses,5034,24505,16/03/2018,0128177,84.00,Revenue,Mobility Care Services,70841,,
Chorley Borough Council,http://statistics.data.gov.uk/id/local-authority/30UE,Private Sector HSG Renewal,1073,Early Intervention,External Contractor,40198,Miscellaneous Expenses,5034,24507,16/03/2018,0128177,64.00,Revenue,Mobility Care Services,70841,,
Chorley Borough Council,http://statistics.data.gov.uk/id/local-authority/30UE,Private Sector HSG Renewal,1073,Early Intervention,External Contractor,40198,Miscellaneous Expenses,5034,24508,16/03/2018,0128177,780.00,Revenue,Mobility Care Services,70841,,
Chorley Borough Council,http://statistics.data.gov.uk/id/local-authority/30UE,Private Sector HSG Renewal,1073,Early Intervention,External Contractor,40198,Miscellaneous Expenses,5034,24510,16/03/2018,0128177,580.00,Revenue,Mobility Care Services,70841,,
Chorley Borough Council,http://statistics.data.gov.uk/id/local-authority/30UE,Private Sector HSG Renewal,1073,Early Intervention,External Contractor,40198,Miscellaneous Expenses,5034,24511,16/03/2018,0128177,40.00,Revenue,Mobility Care Services,70841,,
Chorley Borough Council,http://statistics.data.gov.uk/id/local-authority/30UE,Private Sector HSG Renewal,1073,Early Intervention,External Contractor,40198,Miscellaneous Expenses,5034,24512,16/03/2018,0128177,375.00,Revenue,Mobility Care Services,70841,,
Chorley Borough Council,http://statistics.data.gov.uk/id/local-authority/30UE,Private Sector HSG Renewal,1073,Early Intervention,External Contractor,40198,Miscellaneous Expenses,5034,24513,16/03/2018,0128177,320.00,Revenue,Mobility Care Services,70841,,
Chorley Borough Council,http://statistics.data.gov.uk/id/local-authority/30UE,Private Sector HSG Renewal,1073,Early Intervention,External Contractor,40198,Miscellaneous Expenses,5034,24514,16/03/2018,0128177,60.00,Revenue,Mobility Care Services,70841,,
Chorley Borough Council,http://statistics.data.gov.uk/id/local-authority/30UE,Private Sector HSG Renewal,1073,Early Intervention,External Contractor,40198,Miscellaneous Expenses,5034,24517,16/03/2018,0128177,128.00,Revenue,Mobility Care Services,70841,,
Chorley Borough Council,http://statistics.data.gov.uk/id/local-authority/30UE,Private Sector HSG Renewal,1073,Early Intervention,External Contractor,40198,Miscellaneous Expenses,5034,24518,16/03/2018,0128177,860.00,Revenue,Mobility Care Services,70841,,
Chorley Borough Council,http://statistics.data.gov.uk/id/local-authority/30UE,Private Sector HSG Renewal,1073,Early Intervention,External Contractor,40198,Miscellaneous Expenses,5034,24519,16/03/2018,0128177,64.00,Revenue,Mobility Care Services,70841,,
Chorley Borough Council,http://statistics.data.gov.uk/id/local-authority/30UE,Private Sector HSG Renewal,1073,Early Intervention,External Contractor,40198,Miscellaneous Expenses,5034,24525,16/03/2018,0128177,125.00,Revenue,Mobility Care Services,70841,,
Chorley Borough Council,http://statistics.data.gov.uk/id/local-authority/30UE,Private Sector HSG Renewal,1073,Early Intervention,External Contractor,40198,Miscellaneous Expenses,5034,24546,16/03/2018,0128177,64.00,Revenue,Mobility Care Services,70841,,
Chorley Borough Council,http://statistics.data.gov.uk/id/local-authority/30UE,Private Sector HSG Renewal,1073,Early Intervention,External Contractor,40198,Miscellaneous Expenses,5034,24547,16/03/2018,0128177,64.00,Revenue,Mobility Care Services,70841,,
Chorley Borough Council,http://statistics.data.gov.uk/id/local-authority/30UE,Private Sector HSG Renewal,1073,Early Intervention,External Contractor,40198,Miscellaneous Expenses,5034,24552,16/03/2018,0128177,64.00,Revenue,Mobility Care Services,70841,,
Chorley Borough Council,http://statistics.data.gov.uk/id/local-authority/30UE,Private Sector HSG Renewal,1073,Early Intervention,External Contractor,40198,Miscellaneous Expenses,5034,24553,16/03/2018,0128177,125.00,Revenue,Mobility Care Services,70841,,
Chorley Borough Council,http://statistics.data.gov.uk/id/local-authority/30UE,Private Sector HSG Renewal,1073,Early Intervention,External Contractor,40198,Miscellaneous Expenses,5034,24554,16/03/2018,0128177,250.00,Revenue,Mobility Care Services,70841,,
Chorley Borough Council,http://statistics.data.gov.uk/id/local-authority/30UE,Private Sector HSG Renewal,1073,Early Intervention,External Contractor,40198,Miscellaneous Expenses,5034,24555,16/03/2018,0128177,125.00,Revenue,Mobility Care Services,70841,,
Chorley Borough Council,http://statistics.data.gov.uk/id/local-authority/30UE,Private Sector HSG Renewal,1073,Early Intervention,External Contractor,40198,Miscellaneous Expenses,5034,24562,16/03/2018,0128177,180.00,Revenue,Mobility Care Services,70841,,
Chorley Borough Council,http://statistics.data.gov.uk/id/local-authority/30UE,Private Sector HSG Renewal,1073,Early Intervention,External Contractor,40198,Miscellaneous Expenses,5034,24563,16/03/2018,0128177,60.00,Revenue,Mobility Care Services,70841,,
Chorley Borough Council,http://statistics.data.gov.uk/id/local-authority/30UE,Private Sector HSG Renewal,1073,Early Intervention,External Contractor,40198,Miscellaneous Expenses,5034,24564,16/03/2018,0128177,80.00,Revenue,Mobility Care Services,70841,,
Chorley Borough Council,http://statistics.data.gov.uk/id/local-authority/30UE,Private Sector HSG Renewal,1073,Early Intervention,External Contractor,40198,Miscellaneous Expenses,5034,24569,16/03/2018,0128177,64.00,Revenue,Mobility Care Services,70841,,
Chorley Borough Council,http://statistics.data.gov.uk/id/local-authority/30UE,Private Sector HSG Renewal,1073,Early Intervention,External Contractor,40198,Miscellaneous Expenses,5034,24570,16/03/2018,0128177,140.00,Revenue,Mobility Care Services,70841,,
Chorley Borough Council,http://statistics.data.gov.uk/id/local-authority/30UE,Private Sector HSG Renewal,1073,Early Intervention,External Contractor,40198,Miscellaneous Expenses,5034,24575,16/03/2018,0128177,64.00,Revenue,Mobility Care Services,70841,,
Chorley Borough Council,http://statistics.data.gov.uk/id/local-authority/30UE,Private Sector HSG Renewal,1073,Early Intervention,External Contractor,40198,Miscellaneous Expenses,5034,24576,16/03/2018,0128177,64.00,Revenue,Mobility Care Services,70841,,
Chorley Borough Council,http://statistics.data.gov.uk/id/local-authority/30UE,Private Sector HSG Renewal,1073,Early Intervention,External Contractor,40198,Miscellaneous Expenses,5034,24577,16/03/2018,0128177,128.00,Revenue,Mobility Care Services,70841,,
Chorley Borough Council,http://statistics.data.gov.uk/id/local-authority/30UE,Private Sector HSG Renewal,1073,Early Intervention,External Contractor,40198,Miscellaneous Expenses,5034,24506,16/03/2018,0128177,128.00,Revenue,Mobility Care Services,70841,,
Chorley Borough Council,http://statistics.data.gov.uk/id/local-authority/30UE,Capital,Capital,Business Development & Growth,Main Contractor,03007,Capital Expenditure,Capital,Astley Park Events Area - Removal of spoil remaining from drainage works and tidy site.,09/03/2018,0127939,400.00,Capital,Mr Andy Hart,72236,,
Chorley Borough Council,http://statistics.data.gov.uk/id/local-authority/30UE,Service Management & Support,1009,Customer & Digital,Hire of Plant,40001,"Equipment, Furniture & Materia",5023,Hire of mini digger,02/03/2018,0127838,"1,555.00",Revenue,Mr Stephen Scambler,16710,,
Chorley Borough Council,http://statistics.data.gov.uk/id/local-authority/30UE,Central Support Services,1009,Customer & Digital,Miscellaneous Expenses,40200,Miscellaneous Expenses,5034,To re- level the ground at Kershaw St backs,29/03/2018,0128471,420.00,Revenue,Mr Stephen Scambler,16710,,
Chorley Borough Council,http://statistics.data.gov.uk/id/local-authority/30UE,Private Sector HSG Renewal,1073,Early Intervention,External Contractor,40198,Miscellaneous Expenses,5034,Provision of Energy Switching Support Service in February 2018 (funded by LCC IHIS service),09/03/2018,0127827,817.50,Revenue,Mrs Heather Shaw,65606,,
Chorley Borough Council,http://statistics.data.gov.uk/id/local-authority/30UE,Private Sector HSG Renewal,1073,Early Intervention,External Contractor,40198,Miscellaneous Expenses,5034,Provision of Energy Switching Support Service (funded via LCC IHIS service) during March 2018,27/03/2018,0128455,"1,040.98",Revenue,Mrs Heather Shaw,65606,,
Chorley Borough Council,http://statistics.data.gov.uk/id/local-authority/30UE,Private Sector HSG Renewal,1073,Early Intervention,Miscellaneous Expenses,40200,Miscellaneous Expenses,5034,cont for boiler,27/03/2018,0128459,999.00,Revenue,NAME REDACTED,77029,,
Chorley Borough Council,http://statistics.data.gov.uk/id/local-authority/30UE,Unapportionable Central OHeads,1009,Policy & Governance,Publicity - Advertising,40157,Miscellaneous Expenses,5034,"12,000 x What`s Happening Magazines Estimate 18683",19/03/2018,0128216,"2,887.00",Revenue,N B Colour Print Ltd,17917,,
Chorley Borough Council,http://statistics.data.gov.uk/id/local-authority/30UE,Tourism,1039,Policy & Governance,Publicity - Advertising,40157,Miscellaneous Expenses,5034,Estimate 18627 Title: 8PP A5 + 4PP COVER CHORLEY FLOWER SHOW BOOKLET Size: A5 Artwork: From Press-Ready PDF,19/03/2018,0128217,505.00,Revenue,N B Colour Print Ltd,17917,,
Chorley Borough Council,http://statistics.data.gov.uk/id/local-authority/30UE,Capital,Capital,Business Development & Growth,Purchase Money,03027,Capital Expenditure,Capital,Purchase of ADDRESS REDACTED,29/03/2018,0128486,"115,000.00",Capital,Natwest,77289,,
Chorley Borough Council,http://statistics.data.gov.uk/id/local-authority/30UE,Service Management & Support,1009,Customer & Digital,Refuse Collection,20037,Cleaning and Domestic Supplies,5012,Exchange 20 yard street sweeping skips at the price quoted (64.83 on our previous order PRD048400) from Bengal St Depot,16/03/2018,0128044,972.45,Revenue,Neales Waste Management,17583,,
Chorley Borough Council,http://statistics.data.gov.uk/id/local-authority/30UE,Business Support,1095,Business Development & Growth,Refuse Collection,20037,Cleaning and Domestic Supplies,5012,Market Walk Yard 1 general waste compacted - 35 yard roll on/roll off skip from compactor disposal costs per tonne ,14/03/2018,0128052,"1,952.32",Revenue,Neales Waste Management,17583,,
Chorley Borough Council,http://statistics.data.gov.uk/id/local-authority/30UE,Unapportionable Central OHeads,1009,Customer & Digital,Publications,40054,"Printing, Stationery & General",5026,Council tax publication 2018/2019 Quote URN WAR0518348,19/03/2018,0128212,738.40,Revenue,Newsquest (Lancashire) Limited,18117,,
Chorley Borough Council,http://statistics.data.gov.uk/id/local-authority/30UE,Capital,Capital,Customer & Digital,Main Contractor,03007,Capital Expenditure,Capital,Claim for the payment of grant payments from the Heritage Lottery fund in relation to Bank Hall,23/03/2018,0128322,"107,744.96",Capital,Next Big Thing Developments,77044,,
Chorley Borough Council,http://statistics.data.gov.uk/id/local-authority/30UE,Homelessness,1075,Early Intervention,Miscellaneous Expenses,40200,Miscellaneous Expenses,5034,reimbursment of lost belongings,29/03/2018,0128518,300.00,Revenue,NAME REDACTED,77293,,
Chorley Borough Council,http://statistics.data.gov.uk/id/local-authority/30UE,Unapportionable Central OHeads,1009,Chief Executive,Stationery,40050,"Printing, Stationery & General",5026,Newspapers for Union Street offices April 2017 - March 2018,29/03/2018,0128517,409.75,Revenue,Nooze `n` Booze,19382,,
Chorley Borough Council,http://statistics.data.gov.uk/id/local-authority/30UE,Unapportionable Central OHeads,1009,Business Development & Growth,General Repairs - Reactive,20004,Repairs Maintenance & Alts,5005,"Erection of scaffolding at 7 Market St, Chorley",29/03/2018,0128386,"1,565.00",Revenue,Norman Shawcross Roofing Ltd,77189,,
Chorley Borough Council,http://statistics.data.gov.uk/id/local-authority/30UE,Central Support Services,1009,Customer & Digital,Computer Software-Maintenance,40107,Communication and Computing,5028,"400 Users including: COLD, Graphical Workflow, Case Management/VF, ETD, Autoletter Generator, Priority Manager, ",07/03/2018,0127911,"8,216.00",Revenue,Northgate Public Services (UK) Limited,18285,,
Chorley Borough Council,http://statistics.data.gov.uk/id/local-authority/30UE,Central Support Services,1009,Customer & Digital,Computer Software-Maintenance,40107,Communication and Computing,5028,DOL Mailroom Support & Maintenance renewal 01/04/2018 to 31/03/2019,07/03/2018,0127912,"3,800.00",Revenue,Northgate Public Services (UK) Limited,18285,,
Chorley Borough Council,http://statistics.data.gov.uk/id/local-authority/30UE,Economic Development,1096,Business Development & Growth,Electricity,20013,Energy Costs,5006,market office,09/03/2018,0127854,"2,341.92",Revenue,Npower Commercial Gas,16814,,
Chorley Borough Council,http://statistics.data.gov.uk/id/local-authority/30UE,Unapportionable Central OHeads,1009,Business Development & Growth,Electricity,20013,Energy Costs,5006,town hall,09/03/2018,0127931,"1,400.00",Revenue,Npower Commercial Gas,16814,,
Chorley Borough Council,http://statistics.data.gov.uk/id/local-authority/30UE,Democratic Represent and  Mgnt,1007,Business Development & Growth,Electricity,20013,Energy Costs,5006,harpers lane,27/03/2018,0128387,44.52,Revenue,Npower Commercial Gas,16814,,
Chorley Borough Council,http://statistics.data.gov.uk/id/local-authority/30UE,Democratic Represent and  Mgnt,1007,Business Development & Growth,Electricity,20013,Energy Costs,5006,tatton rec,27/03/2018,0128387,47.84,Revenue,Npower Commercial Gas,16814,,
Chorley Borough Council,http://statistics.data.gov.uk/id/local-authority/30UE,Service Management & Support,1009,Business Development & Growth,Electricity,20013,Energy Costs,5006,gillet,27/03/2018,0128387,52.93,Revenue,Npower Commercial Gas,16814,,
Chorley Borough Council,http://statistics.data.gov.uk/id/local-authority/30UE,Democratic Represent and  Mgnt,1007,Business Development & Growth,Electricity,20013,Energy Costs,5006,king george,27/03/2018,0128387,2.61,Revenue,Npower Commercial Gas,16814,,
Chorley Borough Council,http://statistics.data.gov.uk/id/local-authority/30UE,Democratic Represent and  Mgnt,1007,Business Development & Growth,Electricity,20013,Energy Costs,5006,asltey farm house,27/03/2018,0128387,76.85,Revenue,Npower Commercial Gas,16814,,
Chorley Borough Council,http://statistics.data.gov.uk/id/local-authority/30UE,Democratic Represent and  Mgnt,1007,Business Development & Growth,Electricity,20013,Energy Costs,5006,astley hall,27/03/2018,0128387,48.19,Revenue,Npower Commercial Gas,16814,,
Chorley Borough Council,http://statistics.data.gov.uk/id/local-authority/30UE,Democratic Represent and  Mgnt,1007,Business Development & Growth,Electricity,20013,Energy Costs,5006,eaves geen,27/03/2018,0128387,134.14,Revenue,Npower Commercial Gas,16814,,
Chorley Borough Council,http://statistics.data.gov.uk/id/local-authority/30UE,Community Development,1097,Business Development & Growth,Electricity,20013,Energy Costs,5006,35-39 market st,27/03/2018,0128387,198.33,Revenue,Npower Commercial Gas,16814,,
Chorley Borough Council,http://statistics.data.gov.uk/id/local-authority/30UE,Community Development,1097,Business Development & Growth,Electricity,20013,Energy Costs,5006,35-39 market st,27/03/2018,0128387,43.57,Revenue,Npower Commercial Gas,16814,,
Chorley Borough Council,http://statistics.data.gov.uk/id/local-authority/30UE,Community Development,1097,Business Development & Growth,Electricity,20013,Energy Costs,5006,35-39 market st,27/03/2018,0128387,157.47,Revenue,Npower Commercial Gas,16814,,
Chorley Borough Council,http://statistics.data.gov.uk/id/local-authority/30UE,Democratic Represent and  Mgnt,1007,Business Development & Growth,Electricity,20013,Energy Costs,5006,coronation,27/03/2018,0128387,14.67,Revenue,Npower Commercial Gas,16814,,
Chorley Borough Council,http://statistics.data.gov.uk/id/local-authority/30UE,Democratic Represent and  Mgnt,1007,Business Development & Growth,Electricity,20013,Energy Costs,5006,astley vill,27/03/2018,0128387,108.11,Revenue,Npower Commercial Gas,16814,,
Chorley Borough Council,http://statistics.data.gov.uk/id/local-authority/30UE,Democratic Represent and  Mgnt,1007,Business Development & Growth,Electricity,20013,Energy Costs,5006,astley coach house,27/03/2018,0128387,937.01,Revenue,Npower Commercial Gas,16814,,
Chorley Borough Council,http://statistics.data.gov.uk/id/local-authority/30UE,Democratic Represent and  Mgnt,1007,Business Development & Growth,Electricity,20013,Energy Costs,5006,astley hall cottage,27/03/2018,0128387,67.72,Revenue,Npower Commercial Gas,16814,,
Chorley Borough Council,http://statistics.data.gov.uk/id/local-authority/30UE,Corporate Management,1008,Business Development & Growth,Electricity,20013,Energy Costs,5006,cemetries,27/03/2018,0128387,137.38,Revenue,Npower Commercial Gas,16814,,
Chorley Borough Council,http://statistics.data.gov.uk/id/local-authority/30UE,Democratic Represent and  Mgnt,1007,Business Development & Growth,Electricity,20013,Energy Costs,5006,astley chaning roms,27/03/2018,0128387,386.67,Revenue,Npower Commercial Gas,16814,,
Chorley Borough Council,http://statistics.data.gov.uk/id/local-authority/30UE,Economic Development,1096,Business Development & Growth,Electricity,20013,Energy Costs,5006,market compactor,27/03/2018,0128387,78.86,Revenue,Npower Commercial Gas,16814,,
Chorley Borough Council,http://statistics.data.gov.uk/id/local-authority/30UE,Democratic Represent and  Mgnt,1007,Business Development & Growth,Electricity,20013,Energy Costs,5006,king george,27/03/2018,0128387,14.24,Revenue,Npower Commercial Gas,16814,,
Chorley Borough Council,http://statistics.data.gov.uk/id/local-authority/30UE,Economic Development,1096,Business Development & Growth,Electricity,20013,Energy Costs,5006,portacabin,27/03/2018,0128387,2.49,Revenue,Npower Commercial Gas,16814,,
Chorley Borough Council,http://statistics.data.gov.uk/id/local-authority/30UE,Homelessness,1075,Business Development & Growth,Electricity,20013,Energy Costs,5006,cotlswold,27/03/2018,0128387,471.80,Revenue,Npower Commercial Gas,16814,,
Chorley Borough Council,http://statistics.data.gov.uk/id/local-authority/30UE,Homelessness,1075,Business Development & Growth,Electricity,20013,Energy Costs,5006,cotlswold,27/03/2018,0128387,174.23,Revenue,Npower Commercial Gas,16814,,
Chorley Borough Council,http://statistics.data.gov.uk/id/local-authority/30UE,Homelessness,1075,Business Development & Growth,Electricity,20013,Energy Costs,5006,cotlswold,27/03/2018,0128387,71.88,Revenue,Npower Commercial Gas,16814,,
Chorley Borough Council,http://statistics.data.gov.uk/id/local-authority/30UE,Recreation & Sport,1037,Business Development & Growth,Electricity,20013,Energy Costs,5006,buttermere,27/03/2018,0128387,83.60,Revenue,Npower Commercial Gas,16814,,
Chorley Borough Council,http://statistics.data.gov.uk/id/local-authority/30UE,Recreation & Sport,1037,Business Development & Growth,Electricity,20013,Energy Costs,5006,buckshaw cc,27/03/2018,0128387,109.04,Revenue,Npower Commercial Gas,16814,,
Chorley Borough Council,http://statistics.data.gov.uk/id/local-authority/30UE,Democratic Represent and  Mgnt,1007,Business Development & Growth,Electricity,20013,Energy Costs,5006,rangletts,27/03/2018,0128387,15.87,Revenue,Npower Commercial Gas,16814,,
Chorley Borough Council,http://statistics.data.gov.uk/id/local-authority/30UE,Parking Services,1066,Business Development & Growth,External Contractors,50008,Private Contractors,5042,"Provision of off street car park enforcement, cash collection, cash  counting facilities and third party bulk cash collections ",07/03/2018,0127868,"3,542.65",Revenue,NSL Limited,67253,,
Chorley Borough Council,http://statistics.data.gov.uk/id/local-authority/30UE,Parking Services,1066,Business Development & Growth,External Contractors,50008,Private Contractors,5042,"October, November, December 17 & Jan, Feb & March 18 Extra hours for Saturday & Sundays (from May 17)",07/03/2018,0127869,488.04,Revenue,NSL Limited,67253,,
Chorley Borough Council,http://statistics.data.gov.uk/id/local-authority/30UE,Unapportionable Central OHeads,1009,Policy & Governance,HR Approved Training Expenses,17001,Indirect Employee Expenses,5002,Policies into Play Pilot 18 September 2017 plus travel expenses,14/03/2018,0128133,"1,936.75",Revenue,Nwlaeo,17571,,
Chorley Borough Council,http://statistics.data.gov.uk/id/local-authority/30UE,Business Support,1095,Business Development & Growth,Electricity,20013,Energy Costs,5006,29/1/18 to 25/2/18,07/03/2018,0127959,317.78,Revenue,Opus Energy Ltd,65093,,
Chorley Borough Council,http://statistics.data.gov.uk/id/local-authority/30UE,Parking Services,1066,Business Development & Growth,Printing,40043,"Printing, Stationery & General",5026,"Please supply x60,000 102388 stock tickets  (2-part ticket - Same as the booths ticket but no advertising) @ 6.45 per 1000",23/03/2018,0128279,387.00,Revenue,Paperwork (UK) Limited,18296,,
Chorley Borough Council,http://statistics.data.gov.uk/id/local-authority/30UE,Corporate Management,1008,Policy & Governance,Other Contributions,40145,Grants and Subscriptions,5031,ADDRESS REDACTED,09/03/2018,0128060,"4,664.16",Revenue,NAME REDACTED,73764,,
Chorley Borough Council,http://statistics.data.gov.uk/id/local-authority/30UE,Unapportionable Central OHeads,1009,Policy & Governance,Service Fees,40056,Services,5027,Occupational Health fees for February 2018,07/03/2018,0127986,349.50,Revenue,People Asset Management Limited,76487,,
Chorley Borough Council,http://statistics.data.gov.uk/id/local-authority/30UE,Unapportionable Central OHeads,1009,Policy & Governance,Service Fees,40056,Services,5027,Flu Vaccinations/Vouchers for staff,09/03/2018,0127987,"1,004.25",Revenue,People Asset Management Limited,76487,,
Chorley Borough Council,http://statistics.data.gov.uk/id/local-authority/30UE,Capital,Capital,Business Development & Growth,Other Capital Related Fees,03024,Capital Expenditure,Capital,Primrose Gardens February 2018,09/03/2018,0128008,"4,327.93",Capital,Perfect Circle JV Ltd,76438,,
Chorley Borough Council,http://statistics.data.gov.uk/id/local-authority/30UE,Central Support Services,1009,Early Intervention,External Contractor,40198,Miscellaneous Expenses,5034,Pest Control Duties within Chorley Council,07/03/2018,0127664,340.00,Revenue,Peter L Johnson,16727,,
Chorley Borough Council,http://statistics.data.gov.uk/id/local-authority/30UE,Central Support Services,1009,Early Intervention,External Contractor,40198,Miscellaneous Expenses,5034,Pest Control Duties within Chorley Council,07/03/2018,0127828,340.00,Revenue,Peter L Johnson,16727,,
Chorley Borough Council,http://statistics.data.gov.uk/id/local-authority/30UE,Central Support Services,1009,Early Intervention,External Contractor,40198,Miscellaneous Expenses,5034,Pest Control Duties within Chorley Council,07/03/2018,0127933,340.00,Revenue,Peter L Johnson,16727,,
Chorley Borough Council,http://statistics.data.gov.uk/id/local-authority/30UE,Central Support Services,1009,Early Intervention,External Contractor,40198,Miscellaneous Expenses,5034,Pest Control Duties within Chorley Council,27/03/2018,0128138,340.00,Revenue,Peter L Johnson,16727,,
Chorley Borough Council,http://statistics.data.gov.uk/id/local-authority/30UE,Central Support Services,1009,Early Intervention,External Contractor,40198,Miscellaneous Expenses,5034,Pest Control Duties within Chorley Council,27/03/2018,0128240,340.00,Revenue,Peter L Johnson,16727,,
Chorley Borough Council,http://statistics.data.gov.uk/id/local-authority/30UE,Central Support Services,1009,Early Intervention,External Contractor,40198,Miscellaneous Expenses,5034,March,29/03/2018,0128454,340.00,Revenue,Peter L Johnson,16727,,
Chorley Borough Council,http://statistics.data.gov.uk/id/local-authority/30UE,Central Support Services,1009,Early Intervention,External Contractor,40198,Miscellaneous Expenses,5034,Pest Control Duties within Chorley Council,29/03/2018,0128569,340.00,Revenue,Peter L Johnson,16727,,
Chorley Borough Council,http://statistics.data.gov.uk/id/local-authority/30UE,Capital,Capital,Customer & Digital,Consultants Fees,03025,Capital Expenditure,Capital,"Project management services for market walk - 111,384 over an 18 month period",07/03/2018,0127882,"5,408.00",Capital,Pick Everard,76515,,
Chorley Borough Council,http://statistics.data.gov.uk/id/local-authority/30UE,Capital,Capital,Customer & Digital,Consultants Fees,03025,Capital Expenditure,Capital,"Quantity surveying services for market walk - 43,056 over an 18 month period",09/03/2018,0127947,"2,704.00",Capital,Pick Everard,76515,,
Chorley Borough Council,http://statistics.data.gov.uk/id/local-authority/30UE,Capital,Capital,Customer & Digital,Main Contractor,03007,Capital Expenditure,Capital,Fees Relating to Bank Hall Project,09/03/2018,0127948,"3,250.00",Capital,Pick Everard,76515,,
Chorley Borough Council,http://statistics.data.gov.uk/id/local-authority/30UE,Precepts and Collection Fund,Precepts,Policy & Governance,LPA Precept,02010,Precepts & Collection Fund,Precept,ctaxt precept,16/03/2018,0127719,"601,241.00",Revenue,Police & Crime Commissioner,17438,,
Chorley Borough Council,http://statistics.data.gov.uk/id/local-authority/30UE,Precepts and Collection Fund,Precepts,Policy & Governance,LPA Precept,02010,Precepts & Collection Fund,Precept,ctax,27/03/2018,0128267,"601,241.00",Revenue,Police & Crime Commissioner,17438,,
Chorley Borough Council,http://statistics.data.gov.uk/id/local-authority/30UE,Unapportionable Central OHeads,1009,Policy & Governance,Fixtures & Fittings - Purchase,20027,Fixtures and Fittings,5010,Quote Ref. no. REF9505/4  Signage for Town Hall,29/03/2018,0127575,"1,271.66",Revenue,Poppy Signs Ltd,21898,,
Chorley Borough Council,http://statistics.data.gov.uk/id/local-authority/30UE,Unapportionable Central OHeads,1009,Policy & Governance,Fixtures & Fittings - Purchase,20027,Fixtures and Fittings,5010,Quote REF no. REF9505/4  Signage for Union St offices,29/03/2018,0127575,"1,271.61",Revenue,Poppy Signs Ltd,21898,,
Chorley Borough Council,http://statistics.data.gov.uk/id/local-authority/30UE,Corporate Management,1008,Policy & Governance,Promotional Expenses,40159,Miscellaneous Expenses,5034,Town Hall Drop Banner for Policy and Partnerships,07/03/2018,0127916,"1,800.00",Revenue,Poppy Signs Ltd,21898,,
Chorley Borough Council,http://statistics.data.gov.uk/id/local-authority/30UE,Unapportionable Central OHeads,1009,Policy & Governance,Exhibitions & Special Events,40158,Miscellaneous Expenses,5034,"5mm correx boards,quantity 20 assorted Self adhesive stickers titles quantity 41 assorted Self adhesive stickers numbers or circles",29/03/2018,0128392,288.88,Revenue,Poppy Signs Ltd,21898,,
Chorley Borough Council,http://statistics.data.gov.uk/id/local-authority/30UE,Business Support,1095,Business Development & Growth,Miscellaneous Expenses,40200,Miscellaneous Expenses,5034,Design and re cover signage on Euxton Lane,29/03/2018,0128441,497.11,Revenue,Poppy Signs Ltd,21898,,
Chorley Borough Council,http://statistics.data.gov.uk/id/local-authority/30UE,Unapportionable Central OHeads,1009,Policy & Governance,HR Approved Training Expenses,17001,Indirect Employee Expenses,5002,Train the Trainer course,21/03/2018,0128262,"2,475.00",Revenue,Potential Unearthed,22243,,
Chorley Borough Council,http://statistics.data.gov.uk/id/local-authority/30UE,Unapportionable Central OHeads,1009,Policy & Governance,Photocopier Consumables,40049,"Printing, Stationery & General",5026,Evolution Everyday A3 80gsm box 2500,23/03/2018,0128228,25.93,Revenue,Premier Paper Group,54451,,
Chorley Borough Council,http://statistics.data.gov.uk/id/local-authority/30UE,Unapportionable Central OHeads,1009,Policy & Governance,Photocopier Consumables,40049,"Printing, Stationery & General",5026,"Evolution Everyday A4 80gsm, Box 2500",23/03/2018,0128228,513.00,Revenue,Premier Paper Group,54451,,
Chorley Borough Council,http://statistics.data.gov.uk/id/local-authority/30UE,Unapportionable Central OHeads,1009,Policy & Governance,Photocopier Consumables,40049,"Printing, Stationery & General",5026,White Card A4 250gsm,23/03/2018,0128228,22.48,Revenue,Premier Paper Group,54451,,
Chorley Borough Council,http://statistics.data.gov.uk/id/local-authority/30UE,Unapportionable Central OHeads,1009,Policy & Governance,Refreshments,40036,Catering,5024,"Supply of machine, sanitation of machines, cups, and bottled water for all Council sites March 2018",16/03/2018,0128027,682.40,Revenue,Pressure Coolers Ltd T/A Maestro International Ltd,19767,,
Chorley Borough Council,http://statistics.data.gov.uk/id/local-authority/30UE,Elections,1012,Policy & Governance,Postages,40082,Communication and Computing,5028,postage for empty property poll cards and rural poll cards,21/03/2018,0128275,"2,674.30",Revenue,Print Image Facilities LLP,57870,,
Chorley Borough Council,http://statistics.data.gov.uk/id/local-authority/30UE,Elections,1012,Policy & Governance,Printing,40043,"Printing, Stationery & General",5026,Type A review letter,07/03/2018,0127847,818.66,Revenue,Print Image Network,21171,,
Chorley Borough Council,http://statistics.data.gov.uk/id/local-authority/30UE,Capital,Capital,Business Development & Growth,Main Contractor,03007,Capital Expenditure,Capital,Fire protection works in the union st server room.,29/03/2018,0128542,"5,940.00",Capital,Prosol UK Ltd,77261,,
Chorley Borough Council,http://statistics.data.gov.uk/id/local-authority/30UE,Unapportionable Central OHeads,1009,Policy & Governance,Exhibitions & Special Events,40158,Miscellaneous Expenses,5034,SIA overnight security from Friday 1 December until Sunday 23 December,09/03/2018,0127917,"3,340.00",Revenue,Protege Security Ltd,62271,,
Chorley Borough Council,http://statistics.data.gov.uk/id/local-authority/30UE,Other Short Term Creditors,,Policy & Governance,General Balances,00100,Balance Sheet,Balance,sal deds,16/03/2018,0128192,"3,465.03",Revenue,PRUDENTIAL,18178,,
Chorley Borough Council,http://statistics.data.gov.uk/id/local-authority/30UE,Central Support Services,1009,Customer & Digital,Computer Software-Maintenance,40107,Communication and Computing,5028,"Licence, maintenance & support for DFG software to 31 March 2019   726.72",29/03/2018,0128512,726.72,Revenue,Qtech Applications Ltd,17271,,
Chorley Borough Council,http://statistics.data.gov.uk/id/local-authority/30UE,Service Management & Support,1009,Customer & Digital,Supplies-Grounds Maintenance,40025,"Equipment, Furniture & Materia",5023,Spring Bedding,09/03/2018,0126153,"4,233.74",Revenue,R C S Plants Ltd,67238,,
Chorley Borough Council,http://statistics.data.gov.uk/id/local-authority/30UE,Business Support,1095,Business Development & Growth,Miscellaneous Expenses,40200,Miscellaneous Expenses,5034,"Rentokil service for market walk including- pests x 8 visits per annum, MyLearning SME (FREE) MyRentokil Lite (FREE)",29/03/2018,0128438,336.74,Revenue,Rentokil,76639,,
Chorley Borough Council,http://statistics.data.gov.uk/id/local-authority/30UE,Control Accounts,Control,Policy & Governance,General Balances,00100,Balance Sheet,Balance,Monthly Childcare Vouchers,29/03/2018,0127938,"4,604.33",Revenue,Reward Gateway (UK) Ltd,66814,,
Chorley Borough Council,http://statistics.data.gov.uk/id/local-authority/30UE,Control Accounts,Control,Policy & Governance,General Balances,00100,Balance Sheet,Balance,childcare vouchers,29/03/2018,0128565,"4,083.33",Revenue,Reward Gateway (UK) Ltd,66814,,
Chorley Borough Council,http://statistics.data.gov.uk/id/local-authority/30UE,Control Accounts,Control,Policy & Governance,Manual Control Account,00001,Balance Sheet,Balance,Refund to Collection Account,29/03/2018,CRREF69,"1,536.00",Revenue,RIBA Enterprises,19747,,
Chorley Borough Council,http://statistics.data.gov.uk/id/local-authority/30UE,Non Domestic Rates Redistribut,,Policy & Governance,Tariff to Business Rates Pool,49002,Expenditure not in NCOS,,Lancs Business Rates Pool 2017/18 Chorley Council,29/03/2018,0128506,"496,251.00",Revenue,Ribble Valley Borough Council,21100,,
Chorley Borough Council,http://statistics.data.gov.uk/id/local-authority/30UE,Non Domestic Rates Redistribut,,Policy & Governance,Tariff to Business Rates Pool,49002,Expenditure not in NCOS,,Lancashire Business Rates Pool 2017/18,29/03/2018,0128508,"496,251.00",Revenue,Ribble Valley Borough Council,21100,,
Chorley Borough Council,http://statistics.data.gov.uk/id/local-authority/30UE,Service Management & Support,1009,Customer & Digital,Supplies-Grounds Maintenance,40025,"Equipment, Furniture & Materia",5023,As per quotation GB/ LN; Trustee Amenity 5litres,16/03/2018,0128124,"1,080.00",Revenue,Rigby Taylor Ltd,16299,,
Chorley Borough Council,http://statistics.data.gov.uk/id/local-authority/30UE,Service Management & Support,1009,Customer & Digital,Supplies-Grounds Maintenance,40025,"Equipment, Furniture & Materia",5023,CP Trigger Assembly (755826),16/03/2018,0128124,30.26,Revenue,Rigby Taylor Ltd,16299,,
Chorley Borough Council,http://statistics.data.gov.uk/id/local-authority/30UE,Service Management & Support,1009,Customer & Digital,Supplies-Grounds Maintenance,40025,"Equipment, Furniture & Materia",5023,CP Lance c/w elbow 0.5 metre (72032900),16/03/2018,0128124,56.13,Revenue,Rigby Taylor Ltd,16299,,
Chorley Borough Council,http://statistics.data.gov.uk/id/local-authority/30UE,Service Management & Support,1009,Customer & Digital,Supplies-Grounds Maintenance,40025,"Equipment, Furniture & Materia",5023,CP 2000 screw lid (730263),16/03/2018,0128124,16.17,Revenue,Rigby Taylor Ltd,16299,,
Chorley Borough Council,http://statistics.data.gov.uk/id/local-authority/30UE,Service Management & Support,1009,Customer & Digital,Supplies-Grounds Maintenance,40025,"Equipment, Furniture & Materia",5023,Evolution 16 Knapsack c/w nozzle/regulator pack,16/03/2018,0128124,160.00,Revenue,Rigby Taylor Ltd,16299,,
Chorley Borough Council,http://statistics.data.gov.uk/id/local-authority/30UE,Central Support Services,1009,Early Intervention,Miscellaneous Expenses,40200,Miscellaneous Expenses,5034,Chorley FPN Books Dog/Litter/other,14/03/2018,0127864,582.00,Revenue,Rotaset Printers Limited,77187,,
Chorley Borough Council,http://statistics.data.gov.uk/id/local-authority/30UE,Elections,1012,Policy & Governance,Postages,40082,Communication and Computing,5028,business reply RRHA-KZCB-CAXA January 2018 - March 2018,09/03/2018,0128017,415.75,Revenue,Royal Mail Group Plc,17522,,
Chorley Borough Council,http://statistics.data.gov.uk/id/local-authority/30UE,Capital,Capital,Policy & Governance,Main Contractor,03007,Capital Expenditure,Capital,Events for event staging equipment,29/03/2018,0128426,"8,500.00",Capital,RPM Events,70613,,
Chorley Borough Council,http://statistics.data.gov.uk/id/local-authority/30UE,Housing Strategy,1069,Business Development & Growth,Training Course Fees,17010,Indirect Employee Expenses,5002,10 Northwest Courses for NAME REDACTED,09/03/2018,0127655,850.00,Revenue,RTPI North West,16769,,
Chorley Borough Council,http://statistics.data.gov.uk/id/local-authority/30UE,Corporate Management,1008,Policy & Governance,Promotional Expenses,40159,Miscellaneous Expenses,5034,Animation about Chorley Bins 2018,23/03/2018,0127994,800.00,Revenue,Ryan Hammond,76548,,
Chorley Borough Council,http://statistics.data.gov.uk/id/local-authority/30UE,Service Management & Support,1009,Customer & Digital,Supplies-Grounds Maintenance,40025,"Equipment, Furniture & Materia",5023,As per quote from NAME REDACTED and delivered to Bengal St Depot PR7 1SA; 25 litres Screen Wash,29/03/2018,0128515,34.95,Revenue,Samuel Cooke & Co Ltd,17173,,
Chorley Borough Council,http://statistics.data.gov.uk/id/local-authority/30UE,Service Management & Support,1009,Customer & Digital,Supplies-Grounds Maintenance,40025,"Equipment, Furniture & Materia",5023,205 litres Hydraulic oil ISO 46,29/03/2018,0128515,248.00,Revenue,Samuel Cooke & Co Ltd,17173,,
Chorley Borough Council,http://statistics.data.gov.uk/id/local-authority/30UE,Service Management & Support,1009,Customer & Digital,Supplies-Grounds Maintenance,40025,"Equipment, Furniture & Materia",5023,205 litres of oil for diesel engines,29/03/2018,0128515,399.00,Revenue,Samuel Cooke & Co Ltd,17173,,
Chorley Borough Council,http://statistics.data.gov.uk/id/local-authority/30UE,Democratic Represent and  Mgnt,1007,Business Development & Growth,Electricity,20013,Energy Costs,5006,tatton cc,16/03/2018,0128139,960.24,Revenue,Scottish Power,18998,,
Chorley Borough Council,http://statistics.data.gov.uk/id/local-authority/30UE,Democratic Represent and  Mgnt,1007,Business Development & Growth,Electricity,20013,Energy Costs,5006,,16/03/2018,0128139,42.00,Revenue,Scottish Power,18998,,
Chorley Borough Council,http://statistics.data.gov.uk/id/local-authority/30UE,Homelessness,1075,Early Intervention,External Contractor,40198,Miscellaneous Expenses,5034,"For concierge service at Cotswold Supported Housing, Cotswold Road, Chorley, PR7 3HW. period of Aug 17 March 2018 inclusive.",09/03/2018,0128063,"2,289.80",Revenue,Sector Security Services,19269,,
Chorley Borough Council,http://statistics.data.gov.uk/id/local-authority/30UE,Homelessness,1075,Early Intervention,External Contractor,40198,Miscellaneous Expenses,5034,"For concierge service at Cotswold Supported Housing, Cotswold Road, Chorley, PR7 3HW. For  Aug17 to March 2018 inclusive.",27/03/2018,0128431,"2,308.53",Revenue,Sector Security Services,19269,,
Chorley Borough Council,http://statistics.data.gov.uk/id/local-authority/30UE,Business Support,1095,Business Development & Growth,Security Service,40062,Services,5027,To provide security services to Market Walk Shopping Centre from April 2017 to March 2018. @5809.40 per month - Contract No,16/03/2018,0128072,"6,038.04",Revenue,Securitas Security Services (UK) Ltd,70693,,
Chorley Borough Council,http://statistics.data.gov.uk/id/local-authority/30UE,Business Support,1095,Business Development & Growth,Security Service,40062,Services,5027,To provide security services to Market Walk Shopping Centre from April 2017 to March 2018. @5809.40 per month - Contract No,29/03/2018,0128582,"6,038.04",Revenue,Securitas Security Services (UK) Ltd,70693,,
Chorley Borough Council,http://statistics.data.gov.uk/id/local-authority/30UE,Business Support,1095,Business Development & Growth,Fixtures & Fittings - Purchase,20027,Fixtures and Fittings,5010,grant,21/03/2018,0128272,"1,537.50",Revenue,Slacks Farm Butchers Ltd,76611,,
Chorley Borough Council,http://statistics.data.gov.uk/id/local-authority/30UE,Service Management & Support,1009,Customer & Digital,Protective Clothing,40040,"Clothing, Uniforms and Laundry",5025,Orbit Hercules 620 Safety Boot.  Size 7.  Product Code = CBC03.,16/03/2018,0128179,21.50,Revenue,Smart Image Workwear,21064,,
Chorley Borough Council,http://statistics.data.gov.uk/id/local-authority/30UE,Service Management & Support,1009,Customer & Digital,Protective Clothing,40040,"Clothing, Uniforms and Laundry",5025,Orbit Hercules 620 Safety Boot.  Size 8.  Product Code = CBC03.,16/03/2018,0128179,64.50,Revenue,Smart Image Workwear,21064,,
Chorley Borough Council,http://statistics.data.gov.uk/id/local-authority/30UE,Service Management & Support,1009,Customer & Digital,Protective Clothing,40040,"Clothing, Uniforms and Laundry",5025,Orbit Hercules 620 Safety Boot.  Size 9.  Product Code = CBC03.,16/03/2018,0128179,86.00,Revenue,Smart Image Workwear,21064,,
Chorley Borough Council,http://statistics.data.gov.uk/id/local-authority/30UE,Service Management & Support,1009,Customer & Digital,Protective Clothing,40040,"Clothing, Uniforms and Laundry",5025,Orbit Hercules 620 Safety Boot.  Size 10.  Product Code = CBC03.,16/03/2018,0128179,64.50,Revenue,Smart Image Workwear,21064,,
Chorley Borough Council,http://statistics.data.gov.uk/id/local-authority/30UE,Service Management & Support,1009,Customer & Digital,Protective Clothing,40040,"Clothing, Uniforms and Laundry",5025,Orbit Hercules 620 Safety Boot.  Size 11.  Product Code = CBC03.,16/03/2018,0128179,21.50,Revenue,Smart Image Workwear,21064,,
Chorley Borough Council,http://statistics.data.gov.uk/id/local-authority/30UE,Business Support,1095,Business Development & Growth,Protective Clothing,40040,"Clothing, Uniforms and Laundry",5025,Please supply uniform order as per order ref: 209103 306.90,27/03/2018,0128249,306.90,Revenue,Smart Image Workwear,21064,,
Chorley Borough Council,http://statistics.data.gov.uk/id/local-authority/30UE,Central Support Services,1009,Early Intervention,Miscellaneous Expenses,40200,Miscellaneous Expenses,5034,Hate Crime Workshop - NAME REDACTED (Community Safety) - monies from Lancashire Police and Crime Commissioner,29/03/2018,0128238,925.00,Revenue,South Ribble Borough Council,17889,,
Chorley Borough Council,http://statistics.data.gov.uk/id/local-authority/30UE,Unapportionable Central OHeads,1009,Policy & Governance,Service Fees to other Local Authorities,40076,Services,5027,Provision of Shared Assurance Services for the period 1st April 2017 - 31st March 2018,29/03/2018,0128514,"45,000.00",Revenue,South Ribble Borough Council,17889,,
Chorley Borough Council,http://statistics.data.gov.uk/id/local-authority/30UE,Control Accounts,Control,Early Intervention,Manual Control Account,00001,Balance Sheet,Balance,,29/03/2018,0128551,636.14,Revenue,South Ribble Borough Council,17889,,
Chorley Borough Council,http://statistics.data.gov.uk/id/local-authority/30UE,Central Support Services,1009,Early Intervention,Miscellaneous Expenses,40200,Miscellaneous Expenses,5034,"Extension to the original 3 year contract which ended on 23rd April 2016.  Extension period is 24th April 2016 to 31st Mar 17",21/03/2018,0127170,"20,000.00",Revenue,Spice Innovations Ltd,61318,,
Chorley Borough Council,http://statistics.data.gov.uk/id/local-authority/30UE,Democratic Represent and  Mgnt,1007,Policy & Governance,Grants To Other Organisations,40127,Grants and Subscriptions,5031,cc grant,16/03/2018,0128182,250.00,Revenue,Springfield Park Leisure Centre,70493,,
Chorley Borough Council,http://statistics.data.gov.uk/id/local-authority/30UE,Corporate Management,1008,Policy & Governance,Other Contributions,40145,Grants and Subscriptions,5031,For provision of service 7C from 27.08.17 to 31.03.18,07/03/2018,0127930,"8,038.40",Revenue,Stagecoach Services Limited,18598,,
Chorley Borough Council,http://statistics.data.gov.uk/id/local-authority/30UE,Parking Services,1066,Business Development & Growth,Miscellaneous Expenses,40200,Miscellaneous Expenses,5034,To Provide a Park & ride service from Morrison`s to Woodlands sites every Tuesday & Saturday from Tuesday 24th Oct 17,21/03/2018,0128215,"2,557.03",Revenue,Stagecoach Services Limited,18598,,
Chorley Borough Council,http://statistics.data.gov.uk/id/local-authority/30UE,Corporate Management,1008,Policy & Governance,Other Contributions,40145,Grants and Subscriptions,5031,For provision of service 7C from 27.08.17 to 31.03.18,23/03/2018,0128369,"7,952.12",Revenue,Stagecoach Services Limited,18598,,
Chorley Borough Council,http://statistics.data.gov.uk/id/local-authority/30UE,Capital,Capital,Early Intervention,Grants,03002,Capital Expenditure,Capital,ADDRESS REDACTED,02/03/2018,0127833,"3,650.00",Capital,Stringfellow Bldg Cntrctrs Ltd,17893,,
Chorley Borough Council,http://statistics.data.gov.uk/id/local-authority/30UE,Unapportionable Central OHeads,1009,Business Development & Growth,Planned Maintenance,20006,Repairs Maintenance & Alts,5005,Replacement of wooden guttering to front elevation of the cottage,07/03/2018,0127876,"1,665.23",Revenue,Stringfellow Bldg Cntrctrs Ltd,17893,,
Chorley Borough Council,http://statistics.data.gov.uk/id/local-authority/30UE,Unapportionable Central OHeads,1009,Business Development & Growth,General Repairs - Reactive,20004,Repairs Maintenance & Alts,5005,Blanket order for reactive repairs on all sites,09/03/2018,0127923,548.35,Revenue,Stringfellow Bldg Cntrctrs Ltd,17893,,
Chorley Borough Council,http://statistics.data.gov.uk/id/local-authority/30UE,Unapportionable Central OHeads,1009,Business Development & Growth,General Repairs - Reactive,20004,Repairs Maintenance & Alts,5005,Blanket order for reactive repairs on all sites,09/03/2018,0127924,"1,050.27",Revenue,Stringfellow Bldg Cntrctrs Ltd,17893,,
Chorley Borough Council,http://statistics.data.gov.uk/id/local-authority/30UE,Unapportionable Central OHeads,1009,Business Development & Growth,General Repairs - Reactive,20004,Repairs Maintenance & Alts,5005,Blanket order for reactive repairs on all sites,09/03/2018,0127925,425.25,Revenue,Stringfellow Bldg Cntrctrs Ltd,17893,,
Chorley Borough Council,http://statistics.data.gov.uk/id/local-authority/30UE,Unapportionable Central OHeads,1009,Business Development & Growth,General Repairs - Reactive,20004,Repairs Maintenance & Alts,5005,Blanket order for reactive repairs on all sites,09/03/2018,0127926,"1,500.00",Revenue,Stringfellow Bldg Cntrctrs Ltd,17893,,
Chorley Borough Council,http://statistics.data.gov.uk/id/local-authority/30UE,Unapportionable Central OHeads,1009,Business Development & Growth,General Repairs - Reactive,20004,Repairs Maintenance & Alts,5005,Blanket order for reactive repairs on all sites,16/03/2018,0128037,258.51,Revenue,Stringfellow Bldg Cntrctrs Ltd,17893,,
Chorley Borough Council,http://statistics.data.gov.uk/id/local-authority/30UE,Unapportionable Central OHeads,1009,Business Development & Growth,General Repairs - Reactive,20004,Repairs Maintenance & Alts,5005,Blanket order for reactive repairs on all sites,16/03/2018,0128147,426.72,Revenue,Stringfellow Bldg Cntrctrs Ltd,17893,,
Chorley Borough Council,http://statistics.data.gov.uk/id/local-authority/30UE,Unapportionable Central OHeads,1009,Business Development & Growth,General Repairs - Reactive,20004,Repairs Maintenance & Alts,5005,Blanket order for reactive repairs on all sites,16/03/2018,0128149,557.92,Revenue,Stringfellow Bldg Cntrctrs Ltd,17893,,
Chorley Borough Council,http://statistics.data.gov.uk/id/local-authority/30UE,Unapportionable Central OHeads,1009,Business Development & Growth,General Repairs - Reactive,20004,Repairs Maintenance & Alts,5005,Blanket order for reactive repairs on all sites,16/03/2018,0128150,"4,780.84",Revenue,Stringfellow Bldg Cntrctrs Ltd,17893,,
Chorley Borough Council,http://statistics.data.gov.uk/id/local-authority/30UE,Capital,Capital,Business Development & Growth,Main Contractor,03007,Capital Expenditure,Capital,Replace Vinyl on stairs in CAB  and heating works as discussed,16/03/2018,0128169,"2,350.00",Capital,Stringfellow Bldg Cntrctrs Ltd,17893,,
Chorley Borough Council,http://statistics.data.gov.uk/id/local-authority/30UE,Capital,Capital,Early Intervention,Grants,03002,Capital Expenditure,Capital,ADDRESS REDACTED,23/03/2018,0128277,"4,245.00",Capital,Stringfellow Bldg Cntrctrs Ltd,17893,,
Chorley Borough Council,http://statistics.data.gov.uk/id/local-authority/30UE,Unapportionable Central OHeads,1009,Business Development & Growth,General Repairs - Reactive,20004,Repairs Maintenance & Alts,5005,Blanket order for reactive repairs on all sites,23/03/2018,0128317,356.28,Revenue,Stringfellow Bldg Cntrctrs Ltd,17893,,
Chorley Borough Council,http://statistics.data.gov.uk/id/local-authority/30UE,Unapportionable Central OHeads,1009,Business Development & Growth,General Repairs - Reactive,20004,Repairs Maintenance & Alts,5005,Blanket order for reactive repairs on all sites,27/03/2018,0128328,456.10,Revenue,Stringfellow Bldg Cntrctrs Ltd,17893,,
Chorley Borough Council,http://statistics.data.gov.uk/id/local-authority/30UE,Unapportionable Central OHeads,1009,Business Development & Growth,General Repairs - Reactive,20004,Repairs Maintenance & Alts,5005,Blanket order for reactive repairs on all sites,27/03/2018,0128332,303.26,Revenue,Stringfellow Bldg Cntrctrs Ltd,17893,,
Chorley Borough Council,http://statistics.data.gov.uk/id/local-authority/30UE,Unapportionable Central OHeads,1009,Business Development & Growth,General Repairs - Reactive,20004,Repairs Maintenance & Alts,5005,Blanket order for reactive repairs on all sites,27/03/2018,0128339,"1,368.47",Revenue,Stringfellow Bldg Cntrctrs Ltd,17893,,
Chorley Borough Council,http://statistics.data.gov.uk/id/local-authority/30UE,Unapportionable Central OHeads,1009,Business Development & Growth,General Repairs - Reactive,20004,Repairs Maintenance & Alts,5005,excavate the trial holes and backfilling at the former travellers site at Hut Lane Heath Charnock,29/03/2018,0128347,331.54,Revenue,Stringfellow Bldg Cntrctrs Ltd,17893,,
Chorley Borough Council,http://statistics.data.gov.uk/id/local-authority/30UE,Democratic Represent and  Mgnt,1007,Business Development & Growth,General Repairs - Reactive,20004,Repairs Maintenance & Alts,5005,carry out works to the bridge in the park following the collapse of the tree.,29/03/2018,0128368,"5,625.00",Revenue,Stringfellow Bldg Cntrctrs Ltd,17893,,
Chorley Borough Council,http://statistics.data.gov.uk/id/local-authority/30UE,Capital,Capital,Business Development & Growth,Main Contractor,03007,Capital Expenditure,Capital,Replace Vinyl on stairs in CAB  and heating works as discussed,29/03/2018,0128541,"3,680.00",Capital,Stringfellow Bldg Cntrctrs Ltd,17893,,
Chorley Borough Council,http://statistics.data.gov.uk/id/local-authority/30UE,Unapportionable Central OHeads,1009,Business Development & Growth,Asset Maintenance Fund,20012,Repairs Maintenance & Alts,5005,Decorate comms room as per quotation,29/03/2018,0128543,540.00,Revenue,Stringfellow Bldg Cntrctrs Ltd,17893,,
Chorley Borough Council,http://statistics.data.gov.uk/id/local-authority/30UE,Economic Development,1096,Business Development & Growth,Cleaning Materials,40019,"Equipment, Furniture & Materia",5023,janitorial supplies,16/03/2018,0128171,408.25,Revenue,System Hygiene Ltd,16572,,
Chorley Borough Council,http://statistics.data.gov.uk/id/local-authority/30UE,Economic Development,1096,Business Development & Growth,Cleaning Materials,40019,"Equipment, Furniture & Materia",5023,Please supply stores to Market Office as per e-mail,29/03/2018,0128522,407.65,Revenue,System Hygiene Ltd,16572,,
Chorley Borough Council,http://statistics.data.gov.uk/id/local-authority/30UE,Service Management & Support,1009,Customer & Digital,Tools & Equipment - Purchase,40003,"Equipment, Furniture & Materia",5023,Rectangular panels (aluminium) 84`` x 24`` (1 pair) 1 - Artificial grass matting 2m x 30m Speed braces 27`` (2 pairs),29/03/2018,0128297,"1,197.00",Revenue,Teleshore (UK) Ltd,20447,,
Chorley Borough Council,http://statistics.data.gov.uk/id/local-authority/30UE,Unapportionable Central OHeads,1009,Policy & Governance,Conferences - Staff,40120,Expenses,5030,Two delegates (NAMES REDACTED)  21 Proven Public Procurement Solutions Conference Tuesday 15th May Bridgewater Hall,21/03/2018,0128303,298.00,Revenue,The White Paper Conference Centre,19775,,
Chorley Borough Council,http://statistics.data.gov.uk/id/local-authority/30UE,Elections,1012,Policy & Governance,Publicity - Advertising,40157,Miscellaneous Expenses,5034,electoral registration annual canvass promotions,09/03/2018,0127995,515.10,Revenue,Ticketmedia LTD,76367,,
Chorley Borough Council,http://statistics.data.gov.uk/id/local-authority/30UE,Service Management & Support,1009,Customer & Digital,Grounds Maintenance Contractor,20043,Grounds Maintenance Costs,5013,25% Crown reduction to Beech Tree - Astley Park as per quotation,09/03/2018,0127981,620.00,Revenue,Treescape North West Ltd,17688,,
Chorley Borough Council,http://statistics.data.gov.uk/id/local-authority/30UE,Unapportionable Central OHeads,1009,Business Development & Growth,Asset Maintenance Fund,20012,Repairs Maintenance & Alts,5005,"Drop the poplar at Gillibrand Street on Sunday, 11th December as per ORDER7971.",14/03/2018,0128010,720.00,Revenue,Treescape North West Ltd,17688,,
Chorley Borough Council,http://statistics.data.gov.uk/id/local-authority/30UE,Service Management & Support,1009,Customer & Digital,Grounds Maintenance Contractor,20043,Grounds Maintenance Costs,5013,"Tree works along Bolton Rd, A6 as per quotation; `DATE: 03 Feb 2018  Re:  Tree works � A6 Bolton Road & Astley Park`  ",29/03/2018,0128366,"7,300.00",Revenue,Treescape North West Ltd,17688,,
Chorley Borough Council,http://statistics.data.gov.uk/id/local-authority/30UE,Unapportionable Central OHeads,1009,Business Development & Growth,Fire Alarms,20072,Fixtures and Fittings,5010,Routine maintenance/ 6 month service on the Gas suppression system in union St server room (Dec 17),29/03/2018,0128572,309.00,Revenue,Tyco Fire & Integrated Solutions,19663,,
Chorley Borough Council,http://statistics.data.gov.uk/id/local-authority/30UE,Service Management & Support,1009,Customer & Digital,Petrol,30005,Direct Transport Costs,5016,fuel,16/03/2018,0127880,262.73,Revenue,Uk Fuels Ltd,57996,,
Chorley Borough Council,http://statistics.data.gov.uk/id/local-authority/30UE,Unapportionable Central OHeads,1009,Policy & Governance,Miscellaneous Expenses,40200,Miscellaneous Expenses,5034,levels 1-5,02/03/2018,0127782,"1,527.20",Revenue,UK Healthcare (BDHSC),17241,,
Chorley Borough Council,http://statistics.data.gov.uk/id/local-authority/30UE,Control Accounts,Control,Policy & Governance,General Balances,00100,Balance Sheet,Balance,top ups,02/03/2018,0127782,543.35,Revenue,UK Healthcare (BDHSC),17241,,
Chorley Borough Council,http://statistics.data.gov.uk/id/local-authority/30UE,Unapportionable Central OHeads,1009,Policy & Governance,Miscellaneous Expenses,40200,Miscellaneous Expenses,5034,levels 1-5,27/03/2018,0128460,"1,531.80",Revenue,UK Healthcare (BDHSC),17241,,
Chorley Borough Council,http://statistics.data.gov.uk/id/local-authority/30UE,Control Accounts,Control,Policy & Governance,General Balances,00100,Balance Sheet,Balance,top ups,27/03/2018,0128460,561.14,Revenue,UK Healthcare (BDHSC),17241,,
Chorley Borough Council,http://statistics.data.gov.uk/id/local-authority/30UE,Unapportionable Central OHeads,1009,Customer & Digital,Service Fees,40056,Services,5027,Hybrid Mail,02/03/2018,0127747,644.48,Revenue,UKMAIL Ltd (Mail),57758,,
Chorley Borough Council,http://statistics.data.gov.uk/id/local-authority/30UE,Unapportionable Central OHeads,1009,Customer & Digital,Service Fees,40056,Services,5027,Hybrid Mail,02/03/2018,0127787,970.58,Revenue,UKMAIL Ltd (Mail),57758,,
Chorley Borough Council,http://statistics.data.gov.uk/id/local-authority/30UE,Unapportionable Central OHeads,1009,Customer & Digital,Service Fees,40056,Services,5027,Hybrid Mail,02/03/2018,0127788,"1,376.00",Revenue,UKMAIL Ltd (Mail),57758,,
Chorley Borough Council,http://statistics.data.gov.uk/id/local-authority/30UE,Unapportionable Central OHeads,1009,Customer & Digital,Service Fees,40056,Services,5027,Hybrid Mail,02/03/2018,0127789,605.18,Revenue,UKMAIL Ltd (Mail),57758,,
Chorley Borough Council,http://statistics.data.gov.uk/id/local-authority/30UE,Unapportionable Central OHeads,1009,Customer & Digital,Service Fees,40056,Services,5027,Hybrid Mail,29/03/2018,0128362,828.47,Revenue,UKMAIL Ltd (Mail),57758,,
Chorley Borough Council,http://statistics.data.gov.uk/id/local-authority/30UE,Unapportionable Central OHeads,1009,Customer & Digital,Service Fees,40056,Services,5027,Hybrid Mail,29/03/2018,0128364,779.64,Revenue,UKMAIL Ltd (Mail),57758,,
Chorley Borough Council,http://statistics.data.gov.uk/id/local-authority/30UE,Unapportionable Central OHeads,1009,Customer & Digital,Service Fees,40056,Services,5027,Hybrid Mail,29/03/2018,0128365,997.09,Revenue,UKMAIL Ltd (Mail),57758,,
Chorley Borough Council,http://statistics.data.gov.uk/id/local-authority/30UE,Control Accounts,Control,Policy & Governance,General Balances,00100,Balance Sheet,Balance,deds,19/03/2018,0128268,"1,701.16",Revenue,Unify Credit Union Ltd,55509,,
Chorley Borough Council,http://statistics.data.gov.uk/id/local-authority/30UE,Housing Strategy,1069,Business Development & Growth,Training Course Fees,17010,Indirect Employee Expenses,5002,"Fees: 2017/18 Academic Year, MSc Planning PT (Yr:1) Sponsorship of Students for NAME REDACTED",14/03/2018,0127607,"4,500.00",Revenue,University Of Manchester,16852,,
Chorley Borough Council,http://statistics.data.gov.uk/id/local-authority/30UE,Unapportionable Central OHeads,1009,Policy & Governance,Exhibitions & Special Events,40158,Miscellaneous Expenses,5034,1 x 4.5ltr Anti-Graffiti coating easy on Clear Glaze varnish  1 x 2.25ltr Anti-Graffiti coating easy on Clear Glaze varnish,07/03/2018,0127837,306.64,Revenue,Urban Hygiene Limited,22032,,
Chorley Borough Council,http://statistics.data.gov.uk/id/local-authority/30UE,Planning Policy,1092,Business Development & Growth,Professional Fees,40063,Services,5027,Urban Vision Staff - Planning work,09/03/2018,0128013,"3,376.95",Revenue,Urban Vision Partnership Ltd,21181,,
Chorley Borough Council,http://statistics.data.gov.uk/id/local-authority/30UE,Development Control,1091,Customer & Digital,Consultants` Fees,40077,Services,5027,Planning application support provided by NAME REDACTED,29/03/2018,0128286,"2,734.58",Revenue,Urban Vision Partnership Ltd,21181,,
Chorley Borough Council,http://statistics.data.gov.uk/id/local-authority/30UE,Unapportionable Central OHeads,1009,Policy & Governance,Mayors Medals,40029,"Equipment, Furniture & Materia",5023,Repair to Consort badge as per Quote P905 - 400 Courier collection from Chorley Town Hall to Vaughtons - 37.00 Delivery ,09/03/2018,0127988,445.85,Revenue,Vaughtons,18001,,
Chorley Borough Council,http://statistics.data.gov.uk/id/local-authority/30UE,Service Management & Support,1009,Customer & Digital,External Contractor,40198,Miscellaneous Expenses,5034,for traffic management along the A674  week commencing 26th Feb - as per quote VB/TM/2018/287,09/03/2018,0127978,"3,000.00",Revenue,Ventbrook Ltd,69891,,
Chorley Borough Council,http://statistics.data.gov.uk/id/local-authority/30UE,Corporate Management,1008,Customer & Digital,Unitary Payment(S),50009,Private Contractors,5042,Provision of household waste and recycling collection service including subscription garden waste collections and other ancillary,19/03/2018,0128227,"274,640.75",Revenue,Veolia ES (UK) Ltd,20748,,
Chorley Borough Council,http://statistics.data.gov.uk/id/local-authority/30UE,Corporate Management,1008,Customer & Digital,Unitary Payment(S),50009,Private Contractors,5042,Provision of household waste and recycling collection service including subscription garden waste collections and other ancillary ,27/03/2018,0128424,"274,640.75",Revenue,Veolia ES (UK) Ltd,20748,,
Chorley Borough Council,http://statistics.data.gov.uk/id/local-authority/30UE,Business Support,1095,Business Development & Growth,Grants To Other Organisations,40127,Grants and Subscriptions,5031,sib grant,27/03/2018,0128361,250.00,Revenue,NAME REDACTED,77257,,
Chorley Borough Council,http://statistics.data.gov.uk/id/local-authority/30UE,Service Management & Support,1009,Customer & Digital,Vehicles and Plant Maintenance,30045,Direct Transport Costs,5016,Camera servicing of 16 vehicles as per quotation,02/03/2018,0127846,500.00,Revenue,Vision Techniques,76339,,
Chorley Borough Council,http://statistics.data.gov.uk/id/local-authority/30UE,Service Management & Support,1009,Customer & Digital,Vehicle Trackers - Other Costs,30048,Direct Transport Costs,5016,24 x Driver ID units (V5)  1080.00  Engineer to install Driver ID units and carry out servicing of trackers for one week 1750.00,02/03/2018,0127762,"2,830.00",Revenue,Vision Unique Equipment Limitred,53109,,
Chorley Borough Council,http://statistics.data.gov.uk/id/local-authority/30UE,Service Management & Support,1009,Customer & Digital,Vehicle Trackers - Other Costs,30048,Direct Transport Costs,5016,2 x track devices2 x 12 months subscription for each device,27/03/2018,0128305,418.80,Revenue,Vision Unique Equipment Limitred,53109,,
Chorley Borough Council,http://statistics.data.gov.uk/id/local-authority/30UE,Unapportionable Central OHeads,1009,Policy & Governance,Car Leasing Payment,14100,Direct Employee Expenses,5001,NAME REDACTED,02/03/2018,0127774,308.26,Revenue,VWFS UK Ltd T/A Volkswagen Group Leasing,56010,,
Chorley Borough Council,http://statistics.data.gov.uk/id/local-authority/30UE,Unapportionable Central OHeads,1009,Policy & Governance,Car Leasing Payment,14100,Direct Employee Expenses,5001,,02/03/2018,0127774,26.86,Revenue,VWFS UK Ltd T/A Volkswagen Group Leasing,56010,,
Chorley Borough Council,http://statistics.data.gov.uk/id/local-authority/30UE,Control Accounts,Control,Policy & Governance,Manual Control Account,00001,Balance Sheet,Balance,,02/03/2018,0127774,-26.86,Revenue,VWFS UK Ltd T/A Volkswagen Group Leasing,56010,,
Chorley Borough Council,http://statistics.data.gov.uk/id/local-authority/30UE,Unapportionable Central OHeads,1009,Policy & Governance,Car Leasing Payment,14100,Direct Employee Expenses,5001,NAME REDACTED,02/03/2018,0127783,272.15,Revenue,VWFS UK Ltd T/A Volkswagen Group Leasing,56010,,
Chorley Borough Council,http://statistics.data.gov.uk/id/local-authority/30UE,Unapportionable Central OHeads,1009,Policy & Governance,Car Leasing Payment,14100,Direct Employee Expenses,5001,,02/03/2018,0127783,24.40,Revenue,VWFS UK Ltd T/A Volkswagen Group Leasing,56010,,
Chorley Borough Council,http://statistics.data.gov.uk/id/local-authority/30UE,Control Accounts,Control,Policy & Governance,Manual Control Account,00001,Balance Sheet,Balance,,02/03/2018,0127783,-24.40,Revenue,VWFS UK Ltd T/A Volkswagen Group Leasing,56010,,
Chorley Borough Council,http://statistics.data.gov.uk/id/local-authority/30UE,Unapportionable Central OHeads,1009,Policy & Governance,Car Leasing Payment,14100,Direct Employee Expenses,5001,NAME REDACTED,27/03/2018,0128467,272.15,Revenue,VWFS UK Ltd T/A Volkswagen Group Leasing,56010,,
Chorley Borough Council,http://statistics.data.gov.uk/id/local-authority/30UE,Unapportionable Central OHeads,1009,Policy & Governance,Car Leasing Payment,14100,Direct Employee Expenses,5001,,27/03/2018,0128467,24.40,Revenue,VWFS UK Ltd T/A Volkswagen Group Leasing,56010,,
Chorley Borough Council,http://statistics.data.gov.uk/id/local-authority/30UE,Control Accounts,Control,Policy & Governance,Manual Control Account,00001,Balance Sheet,Balance,,27/03/2018,0128467,-24.40,Revenue,VWFS UK Ltd T/A Volkswagen Group Leasing,56010,,
Chorley Borough Council,http://statistics.data.gov.uk/id/local-authority/30UE,Unapportionable Central OHeads,1009,Policy & Governance,Car Leasing Payment,14100,Direct Employee Expenses,5001,NAME REDACTED,27/03/2018,0128468,308.26,Revenue,VWFS UK Ltd T/A Volkswagen Group Leasing,56010,,
Chorley Borough Council,http://statistics.data.gov.uk/id/local-authority/30UE,Unapportionable Central OHeads,1009,Policy & Governance,Car Leasing Payment,14100,Direct Employee Expenses,5001,,27/03/2018,0128468,26.86,Revenue,VWFS UK Ltd T/A Volkswagen Group Leasing,56010,,
Chorley Borough Council,http://statistics.data.gov.uk/id/local-authority/30UE,Control Accounts,Control,Policy & Governance,Manual Control Account,00001,Balance Sheet,Balance,,27/03/2018,0128468,-26.86,Revenue,VWFS UK Ltd T/A Volkswagen Group Leasing,56010,,
Chorley Borough Council,http://statistics.data.gov.uk/id/local-authority/30UE,Central Support Services,1009,Customer & Digital,Computer Software-Maintenance,40107,Communication and Computing,5028,Annual standard support renewal 1st March 2018-1st March 2019 total 1097,27/03/2018,0128318,"1,097.00",Revenue,Waterford Technologies,18023,,
Chorley Borough Council,http://statistics.data.gov.uk/id/local-authority/30UE,Democratic Represent and  Mgnt,1007,Business Development & Growth,Water - Metered Supplies,20022,Water Services,5009,astley hall,09/03/2018,0127852,483.78,Revenue,Water-plus,17926,,
Chorley Borough Council,http://statistics.data.gov.uk/id/local-authority/30UE,Parking Services,1066,Business Development & Growth,Water - Unmetered Supply,20023,Water Services,5009,car park,09/03/2018,0127853,362.35,Revenue,Water-plus,17926,,
Chorley Borough Council,http://statistics.data.gov.uk/id/local-authority/30UE,Economic Development,1096,Business Development & Growth,Water - Metered Supplies,20022,Water Services,5009,market stall 1,09/03/2018,0127974,324.61,Revenue,Water-plus,17926,,
Chorley Borough Council,http://statistics.data.gov.uk/id/local-authority/30UE,Economic Development,1096,Business Development & Growth,Water - Metered Supplies,20022,Water Services,5009,market stal 1,09/03/2018,0127975,470.57,Revenue,Water-plus,17926,,
Chorley Borough Council,http://statistics.data.gov.uk/id/local-authority/30UE,Unapportionable Central OHeads,1009,Business Development & Growth,Water - Metered Supplies,20022,Water Services,5009,15/12/17 to 4/3/18,14/03/2018,0128109,561.03,Revenue,Water-plus,17926,,
Chorley Borough Council,http://statistics.data.gov.uk/id/local-authority/30UE,Homelessness,1075,Business Development & Growth,Water - Metered Supplies,20022,Water Services,5009,12/12/17 to 2/3/18,14/03/2018,0128110,410.71,Revenue,Water-plus,17926,,
Chorley Borough Council,http://statistics.data.gov.uk/id/local-authority/30UE,Democratic Represent and  Mgnt,1007,Business Development & Growth,Water - Metered Supplies,20022,Water Services,5009,12/12/17 to 2/3/18,14/03/2018,0128121,267.14,Revenue,Water-plus,17926,,
Chorley Borough Council,http://statistics.data.gov.uk/id/local-authority/30UE,Unapportionable Central OHeads,1009,Business Development & Growth,Water - Metered Supplies,20022,Water Services,5009,destructor,23/03/2018,0128270,942.54,Revenue,Water-plus,17926,,
Chorley Borough Council,http://statistics.data.gov.uk/id/local-authority/30UE,Economic Development,1096,Business Development & Growth,Water - Metered Supplies,20022,Water Services,5009,maket stall 1,23/03/2018,0128296,595.78,Revenue,Water-plus,17926,,
Chorley Borough Council,http://statistics.data.gov.uk/id/local-authority/30UE,Unapportionable Central OHeads,1009,Policy & Governance,HR Recruitment - Advertising,15300,Indirect Employee Expenses,5002,Advertising for Enforcement Team Leader roles,21/03/2018,0128304,598.00,Revenue,Websense Recruit Ltd T/A Fill My Vacancy,76200,,
Chorley Borough Council,http://statistics.data.gov.uk/id/local-authority/30UE,Parking Services,1066,Business Development & Growth,Stationery,40050,"Printing, Stationery & General",5026,"Supply of 99 pcn rolls @ 1.64 each & 6840 pcn wallets @ 25.70 per 1,000  (ordered 25/8/2016)",27/03/2018,0128397,338.15,Revenue,West Lancashire Borough Council,17810,,
Chorley Borough Council,http://statistics.data.gov.uk/id/local-authority/30UE,Capital,Capital,Business Development & Growth,Main Contractor,03007,Capital Expenditure,Capital,Detailed design works relating to improving drainage to prevent waterlogging of sports pitches at King George V Field. Inv No 4658,07/03/2018,0127366,"1,500.00",Capital,Westlakes Engineering Ltd,74337,,
Chorley Borough Council,http://statistics.data.gov.uk/id/local-authority/30UE,Unapportionable Central OHeads,1009,Chief Executive,Postages,40082,Communication and Computing,5028,"Mail collection for Town Hall and Union Street, April 2017 - March 2018",07/03/2018,0127686,316.60,Revenue,Whistl North Limited,67256,,
Chorley Borough Council,http://statistics.data.gov.uk/id/local-authority/30UE,Unapportionable Central OHeads,1009,Policy & Governance,Exhibitions & Special Events,40158,Miscellaneous Expenses,5034,3 x Large Book benches 10 x Medium Book Benches Delivery,23/03/2018,0128350,"7,109.00",Revenue,Wild in Art,76437,,
Chorley Borough Council,http://statistics.data.gov.uk/id/local-authority/30UE,Business Support,1095,Business Development & Growth,Grants To Other Organisations,40127,Grants and Subscriptions,5031,starting business grant,14/03/2018,0128087,250.00,Revenue,NAME REDACTED,77256,,
Chorley Borough Council,http://statistics.data.gov.uk/id/local-authority/30UE,Corporate Management,1008,Customer & Digital,Provn Of Street Furniture,20057,Grounds Maintenance Costs,5013,"Please manufacture and supply 15 x MLB/120 Closed Top Litter Bin complete with 5 mm base, to Chorley Council specification",19/03/2018,0128231,"2,850.00",Revenue,Wybone Ltd,18097,,
Chorley Borough Council,http://statistics.data.gov.uk/id/local-authority/30UE,Corporate Management,1008,Customer & Digital,Provn Of Street Furniture,20057,Grounds Maintenance Costs,5013,"Please manufacture and supply 15 x 112 Litre Litter Bin Eco Complete With Fold Down Deflectors, Laser Cut Base & Stainless",19/03/2018,0128231,"2,549.85",Revenue,Wybone Ltd,18097,,
